Workbook

Sheet ReadMe
A1: Instructions for Electronic Forms, pg 1
A2: 2012 Washington State Energy Code Compliance Forms for Commercial Buildings including R2 & R3 over 3 stories and all R1
B3: Revised Oct 2013
B4: Commercial Provision Chapters 1 - 5 of the 2012 Washington State Energy Code apply to all commercial occupancies, R-2 and R-3 occupancies greater than 3 stories above grade, and R-1 occupancy (all building heights).
A5: Intro | B5: This file, ENV12-v3.XLSM, has electronic compliance forms for envelope provisions as defined in Sections C101, C303, C402 and Appendix A for Climate Zones 4c and 5b. There are two companion files: LTG12-v3.XLSM (Section C405 lighting, motor, and transformer requirements), and MECH12-v3.XLSM (Section C403 mechanical systems requirements).
A6: Energy Code | B6: This form is a compliance aid and is not a substitute for the full energy code text or specific jurisdiction compliance requirements. Users should refer to the code text and contact the local jurisdiction for complete information. The full 2012 WSEC code text is available for download from the NEEC website:
B7: http:/www.neec.net/energy-codes
A8: Training | B8: Refer to the NEEC website for instruction on how to complete all of the 2012 WSEC Compliance Forms.
A9: Start-up | B9: Select this file from the NEEC website to download to your computer. When opening the file be sure to Enable Macros.
A10: Overview | B10: This file is an Excel workbook that contains multiple compliance forms and resources in Excel worksheets. Each worksheet is indicated by a tab at the bottom of the screen. You may visit each worksheet by selecting it's tab.
B11: Most calculations are automated. Cells that display informational text and the results of calculations are write-protected and cannot be edited.
A12: Save Files | B12: This file is saved in the same manner as any standard Excel file.
A13: Getting Around | B13: Some forms have two pages. Both pages are available on screen when you select the tab for a form (worksheet). Use the scroll bars to find the second page located below the first page.
A14: Input Cells | B14: All general project information and the date are entered once on ENV-SUM. This information is automatically replicated on all other ENV forms. The ENV-SUM form accompanies all other ENV forms.
B15: Only input cells are accessible. If you try to edit a write-protected cell an error message will appear requesting a password. A password IS NOT required to complete these forms. You may use the TAB key to move to the next input cell. If the TAB doesn't take you where you want to go, use your mouse to move around the form.
B16: Avoid excessively long text strings when entering information. In some cases, text that extends beyond the available space will not be visible. In most cases the text will wrap within the cell. This may force part of the form onto a new page.
B17: To enter the date, use this format: mm/dd/yyyy. For example, you would enter 7/1/2013 or 12/21/2014.
B18: Check boxes can be checked or unchecked by clicking in the box with your mouse. Radio buttons (circles) allow only one in a set to be selected.
B19: Drop-down lists have an arrow at the right side of the cell. Click on the arrow with your mouse and select the appropriate option. Use the delete button on your computer to clear a drop-down entry.
B20: When a form has a space for notes or explanation, click anywhere in the space to edit.
A21: Personalizing | B21: You can personalize the forms with your company name, address, phone, or any other information. This is done by editing the header or footer in Excel.
A22: Adding Lines and | B22: Many tables, such as for listing envelope assembly types, have a certain number of lines available for entering data. You may need more lines to enter all your information. Where this feature is available, you can add additional lines to the table by selecting the "+" button on the right hand side of the table with your mouse. If you can't see the "+" button, scroll to the right or increase the View Zoom setting for the worksheet.
A23: Removing | B23: To remove lines that you have added, select the "-" button with your mouse. You cannot remove lines that were not added; an error message will appear if you try.
B24: If you add additional lines with this method, the pagination may be affected forcing the forms to carry additional lines over to other pages. Be sure to submit all pages to the plans examiner.
A25: Compliance Path | B25: You must select a Compliance Path on ENV-SUM (line 12) to activate the correct input method for Window-to-Wall and Skylight-to-Roof ratios.
A26: Occupancy Group | B26: You must select an Occupancy Group on ENV-SUM (line 14) for this workbook to display the correct code requirements and automatically calculate component performance target UA values.
A27: Instructions for Electronic Forms, pg 2
A28: =A2 -> 2012 Washington State Energy Code Compliance Forms for Commercial Buildings including R2 & R3 over 3 stories and all R1
B29: =B3 -> Revised Oct 2013
A30: Fenestration Area | B30: For projects complying via the Prescriptive Path, enter the vertical fenestration area, gross wall area (includes vertical fenestration, doors, etc), skylight area and gross roof area (includes skylights, mechanical equipment curbs, etc) directly into the Vertical Fenestration and Skylight Area Calculation input cells on the ENV-SUM form. The form will calculate the Window-to-Wall and Skylight-to-Roof ratios.
B31: For projects complying via the Component Performance Path, the Vertical Fenestration and Skylight Area inputs in the ENV-SUM form are write protected. Enter all applicable envelope information in the ENV-UA form. The resulting Window-to-Wall and Skylight-to-Roof ratios will auto fill into the ENV-SUM form from the ENV-UA form.
A32: Vertical Fenestration Alternates | B32: The prescriptive vertical fenestration target area is 30%. This target increases to 40% if the project complies with the requirements of either C402.3.1.1 50% floor area within the daylight zone, or C402.3.1.3 high performance vertical fenestration.
B33: If the project is eligible for one of these alternates, select the corresponding button on Line 24 of the ENV-SUM form. This will re-calculate the prescriptive target area in the ENV-SUM and ENV-UA forms based on 40%.
A34: Target Area Adjustment | B34: Target Area Adjustment is required if the project exceeds the prescriptive target area for vertical fenestration or skylights. Adjusted target areas are automatically calculated in the ENV-UA form using envelope assembly areas you enter for your project. Adjusted target areas will appear in the Target UA column in the ENV-UA form. Refer to Target Area Adjustment worksheet for the supporting calculations.
A35: Printing | B35: The forms should print on any printer supported by your operating system. You will need to have the following TrueType fonts installed under Windows: Arial, Times New Roman, Courier New and Wingdings. These are all standard Windows fonts.
B36: If you are losing form details when printing, you may have a shortage of printer memory. Try printing problem pages individually.
B37: By default, only the active worksheet is printed. To print more than one worksheet at a time, open your print set-up menu and select either the page range you wish to print or Entire Workbook.
B38: Forms (worksheets) in a workbook may not be deleted because the file is locked.
A39: Blank Forms | B39: To print blank forms to fill out by hand, delete all of the heading information at the beginning of ENV-SUM and select the desired Occupancy Group.
B40: For each radio button group there is a button labeled "Clear." Clicking this button will clear the other buttons so that they will print as empty circles. The "Clear" button will not print.
A41: End of Instructions for Electronic Forms

Sheet ENV-SUM
A1: Envelope Summary | E1: ='TA1'!$C$101 -> Zones 4c/5b | G1: ENV-SUM
A2: =ReadMe!A2 -> 2012 Washington State Energy Code Compliance Forms for Commercial Buildings including R2 & R3 over 3 stories and all R1 | G2: =ReadMe!B3 -> Revised Oct 2013
A3: Project Info | B3: Project Address | C3: Baxter Mini-Storage Bldg. | F3: Date | G3: 2015-09-07
C4: 3019 Ocean Beach RD. Pacific Beach, WA 98571 | F4: For Building Department Use
B6: Applicant Name: | C6: Mark Baxter
B7: Applicant Address: | C7: 3019 Ocean Beach RD. Pacific Beach, WA 98571
B8: Applicant Phone: | C8: 360-276-4182
A10: Project Description
A12: Compliance Path
A14: Occupancy Group
C16: Total Vertical Fenestration (rough opening) | D16: divided by | E16: Gross Exterior Above Grade Wall Area | F16: times 100 equals | G16: % Vertical Fenestration
C17: ='TA1'!F12 -> 0 | D17: ¸ | E17: ='TA1'!B15 -> 2045 | F17: X 100 = | G17: =IF(C17="Path?","Path?",IF(E17>0,C17/E17,"")) -> 0
C18: Total Skylight | D18: divided by | E18: Gross Exterior Roof Area | F18: times 100 equals | G18: % Skylight
C19: ='TA1'!F59 -> 0 | D19: ¸ | E19: ='TA1'!B64 -> 3585 | F19: X 100 = | G19: =IF(C19="Path?","Path?",IF(E19>0,C19/E19,"")) -> 0
A21: Fenestration Area Compliance | C21: Vertical Fenestration Area | D21: =IF(AND(ComponentPath<>4,OccGroup<>3,ISNUMBER(G17)),IF(OR(G17<=0.3,AND(G17<=0.4,OR(dlz50pct=1,hpfwin=1))),"VERTICAL FENESTRATION AREA COMPLIES",IF(OR(dlz50pct=1,hpfwin=1),IF(ComponentPath=1,"Project exceeds maximum vertical fenestration area for Prescriptive compliance. Comply via Component Performance with Target Area Adjustment.",IF(ComponentPath=2,"Project exceeds maximum target vertical fenestration area. Target area adjustment applied to UA calculation.","")),IF(ComponentPath=1,"Project exceeds maximum vertical fenestration area for Prescriptive compliance. Comply via 50% DLZ Option (C402.3.1.1), High Performance Window Option (C402.3.1.3), or Component Performance with Target Area Adjustment.",IF(ComponentPath=2,"Project exceeds maximum target vertical fenestration area. Target area adjustment applied to UA calculation. May comply via 50% DLZ Option (C402.3.1.1) or High Performance Window Option (C402.3.1.3).","")) )),"") -> VERTICAL FENESTRATION AREA COMPLIES
C22: Skylight Area | D22: =IF(ISNUMBER(G19),IF(G19>0.05,IF(ComponentPath=1,"Project exceeds maximum skylight area for Prescriptive compliance. Comply via Component Performance with Target Area Adjustment.",IF(ComponentPath=2,"Project exceeds target skylight area. Target area adjustment applied to UA calculation.","")),IF(G19>=0,"SKYLIGHT AREA COMPLIES","")),"") -> SKYLIGHT AREA COMPLIES
A24: Vertical Fenestration Alternates
A26: Single Story Spaces Requiring Skylights
A28: Semi-Heated Spaces
A31: Refrigerated Spaces
A33: Mixed Occupancy and/or
A34: Space Conditioning

Sheet ENV-REQUIREMENTS
A1: Envelope Requirements Summary, pg 1 | E1: ='TA1'!$C$101 -> Zones 4c/5b | F1: ENV-REQ
A2: =ReadMe!A2 -> 2012 Washington State Energy Code Compliance Forms for Commercial Buildings including R2 & R3 over 3 stories and all R1 | F2: =ReadMe!B3 -> Revised Oct 2013
A3: Minimum Requirements
A4: for Prescriptive Compliance
B5: Prescriptive Path | C5: Table C402.2 Notes 1,7 Insulation Minimum R-Value | E5: Table C402.1.2 Notes 1,2 Assembly Maximum U-factor
B6: Occupancy Group | C6: All Other | D6: Group R | E6: All Other | F6: Group R
A7: Opaque Elements
A8: Roofs
B9: Insulation Entirely above Deck | C9: R-30 c.i. | D9: R-38 c.i. | E9: U-0.034 | F9: U-0.031
B10: Metal Building (with R-3.5 thermal blocks) Note 3 | C10: R-25 + R-11 Ls | D10: R-25 + R-11 Ls | E10: U-0.031 | F10: U-0.031
B11: Attic and Other | C11: R-49 | D11: R-49 | E11: U-0.021 | F11: U-0.021
A12: Walls, Above-grade
B13: Mass | C13: R-9.5 c.i. | D13: R-13.3 c.i. | E13: U-0.104 Note 6 | F13: U-0.078
B14: Metal Building | C14: R-13 + R-13 c.i. | D14: R-13 + R-13 c.i. | E14: U-0.052 | F14: U-0.052
B15: Steel Framed | C15: R-13 + R-10c.i. | D15: R-19 + R-8.5 c.i. | E15: U-0.055 | F15: U-0.055
B16: Wood Framed and Other | C16: R-21 int | D16: R-21 int | E16: U-0.054 | F16: U-0.054
A17: Below Grade Wall Note 4 | C17: Same as above grade | E17: Same as above grade
A18: Floors
B19: Mass | C19: R-30 c.i. | D19: R-30 c.i. | E19: U-0.031 | F19: U-0.031
B20: Steel Joist | C20: R-38 + R-10 c.i. | D20: R-38 + R-10 c.i. | E20: U-0.029 | F20: U-0.029
B21: Wood Framed and Other | C21: R-30 | D21: R-30 | E21: U-0.029 | F21: U-0.029
A22: Slab-On-Grade Floors
B23: Unheated | C23: R-10 for 24 in. (from top of slab) | E23: F-0.54 | F23: F-0.54
B24: Heated Note 5 | C24: R-10 perimeter & under entire slab | E24: F-0.55 | F24: F-0.55
A25: Opaque Doors
B26: Swinging | C26: No R-Value for prescriptive compliance. | E26: U-0.37 | F26: U-0.37
B27: Roll-up or sliding | C27: R-4.75 | D27: R-4.75 | E27: No U-Value for prescriptive compliance.
C28: Table C402.3 - 0-30% of wall area, or 30%-40% per Section C402.3.1.1 DLZ | E28: Section C402.3.1.3 High Performance Fenestration Option - 0-40% of wall area
A29: Fenestration | C29: Assembly Maximum U-factor Notes 1,2
A30: Vertical Fenestration
B31: Nonmetal framing | C31: U-0.30 | D31: U-0.30 | E31: U-0.28 | F31: U-0.28
B32: Metal framing (fixed) | C32: U-0.38 | D32: U-0.38 | E32: U-0.34 | F32: U-0.34
B33: Metal framing (operable) | C33: U-0.40 | D33: U-0.40 | E33: U-0.36 | F33: U-0.36
B34: Entrance doors | C34: U-0.60 | D34: U-0.60 | E34: U-0.60 | F34: U-0.60
A35: Skylights
B36: Skylights | C36: U-0.50 | D36: U-0.50 | E36: U-0.50 | F36: U-0.50
A37: Fenestration | C37: Assembly Maximum SHGC Factor
A38: Vertical Fenestration | C38: PF < 0.2: all orientations - SHGC-0.40 0.2 ≤ PF < 0.5: north - SHGC-0.44; all other - SHGC-0.48 PF ≥ 0.5: north - SHGC-0.48; all other - SHGC-0.64 | E38: PF < 0.2: all orientations - SHGC-0.35 0.2 ≤ PF < 0.5: north - SHGC-0.385; all other - SHGC-0.42 PF ≥ 0.5: north - SHGC-0.42; all other - SHGC-0.56
A39: Skylights | C39: SHGC-0.35 | E39: SHGC-0.35
A40: Refrigerated Spaces Insulation | C40: Insulation Minimum R-Value Table C402.5 and C402.6 | E40: Assembly Maximum U-factor
A41: Freezers - Walk-in and Warehouse
B42: Roof / Ceiling | C42: R-32 | E42: No U-Value for prescriptive compliance
B43: Wall | C43: R-32
B44: Door | C44: R-32
B45: Door - transparent reach-in | C45: triple-pane, heat-reflective treated or gas fill
B46: Floor | C46: R-28
A47: Coolers - Walk-in and Warehouse
B48: Roof / Ceiling | C48: R-25 | E48: No U-Value for prescriptive compliance
B49: Wall | C49: R-25
B50: Door | C50: R-25
B51: Door - transparent reach-in | C51: double-pane, heat-reflective treated & gas fill, or comply with freezer door req.
B52: Floor | C52: No Requirement
A53: Envelope Requirements Summary, pg 2 | F53: ENV-REQ
A54: =A2 -> 2012 Washington State Energy Code Compliance Forms for Commercial Buildings including R2 & R3 over 3 stories and all R1 | F54: =F2 -> Revised Oct 2013
A55: Definitions:
A60: Footnote Summary:
A72: End of Envelope Requirements Summary

Sheet ENV-PRESCRIPTIVE
A1: Prescriptive Path, pg. 1 | G1: ='TA1'!$C$101 -> Zones 4c/5b | K1: ENV-PRESCRIPTIVE
A2: ='ENV-SUM'!A2 -> 2012 Washington State Energy Code Compliance Forms for Commercial Buildings including R2 & R3 over 3 stories and all R1 | K2: ='ENV-SUM'!G2 -> Revised Oct 2013
A3: ='ENV-SUM'!B3 -> Project Address | E3: =IF('ENV-SUM'!$C$3="1 - This address line will copy onto other forms","1 - Fill this line out on ENV-SUM",'ENV-SUM'!$C$3) -> Baxter Mini-Storage Bldg. | I3: Date | J3: =TEXT('ENV-SUM'!$G$3,"mm/dd/yyyy") -> 09/07/2015
A4: Occupancy Group | I4: For Building Department Use
A5: Fenestration Area as % gross above-grade wall area | F5: =IF('ENV-SUM'!G17>0,'ENV-SUM'!G17,0) -> 0 | G5: Max. Target: | H5: ='TA1'!D15 -> 0.3
A6: Skylight Area as % gross roof area | F6: =IF('ENV-SUM'!G19>0,'ENV-SUM'!G19,0) -> 0 | G6: Max. Target: | H6: ='TA1'!D64 -> 0.05
A7: Vertical Fenestration Alternates: | F7: ='TA1'!B95 -> None Selected on ENV-SUM
A9: Building Component | F9: R-Value for Prescriptive Compliance | I9: U-Factor/F-Factor for Alternative Prescriptive Compliance
D10: Provide page/plan # of assembly detail and ID. | F10: Cavity Ins. R-Value | G10: Continuous Ins. (CI) R-Value | H10: Alternate CI R-Value (Table C402.2 Footnote F)1 | I10: Assembly U-Factor | J10: U-Factor Source (Appendix A, Chapter 3 table, or approved calculation method)
C11: ID:
C12: ID:
C13: ID: | M13: 0
C14: ID:
C15: ID:
C16: ID:
C17: ID:
C18: ID:
C19: ID:
C20: ID:
C21: ID:
C22: ID:
C23: ID:
C24: ID:
C25: ID:
C26: ID:
C27: ID:
C28: ID:
C29: ID:
C30: ID:
C31: ID:
C32: ID:
C33: ID:
C34: ID:
C35: ID:
C36: ID:
C37: ID:
C38: ID:
C39: ID:
C40: ID:
C41: ID:
F42: Perim. Ins. R-Value | G42: Full Slab CI R-Value | I42: F-Factor | J42: F-Factor Source
C43: ID:
C44: ID:
C45: ID:
C46: ID:
C47: ID:
C48: ID:
A53: Prescriptive Path, pg. 2 | G53: ='TA1'!$C$101 -> Zones 4c/5b | K53: ENV-PRESCRIPTIVE
A54: =A2 -> 2012 Washington State Energy Code Compliance Forms for Commercial Buildings including R2 & R3 over 3 stories and all R1 | I54: ='ENV-SUM'!E67 -> 0 | K54: =K2 -> Revised Oct 2013
A55: ='ENV-SUM'!B3 -> Project Address | E55: =E3 -> Baxter Mini-Storage Bldg. | I55: Date | J55: =J3 -> 09/07/2015
A56: Fenestration Area as % gross above-grade wall area | F56: =F5 -> 0 | G56: Max. Target: | H56: =H5 -> 0.3 | I56: For Building Department Use
A57: Skylight Area as % gross roof area | F57: =F6 -> 0 | G57: Max. Target: | H57: =H6 -> 0.05
A59: Building Component | F59: R-Value for Prescriptive Compliance | I59: U-Factor/F-Factor for Alternative Prescriptive Compliance
D60: Provide page/plan # of assembly detail and ID. | F60: Cavity Ins. R-Value | G60: Continuous Ins. (CI) R-Value | H60: Alternate CI R-Value (Table C402.2 Footnote F) | I60: Assembly U-Factor | J60: U-Factor Source (Appendix A, Chapter 3 table, or approved calculation method)
C61: ID:
C62: ID:
C63: ID:
C64: ID:
C65: ID:
C66: ID:
F68: Solar Heat Gain Coefficient (SHGC) | I68: U-Factor for Prescriptive Compliance
F69: Projection factor (PF) (if applicable) | G69: SHGC Adjustment Multiplier (if applicable) | H69: Assembly SHGC | I69: Assembly U-Factor | J69: U-Factor Source (NFRC, Appendix A, or Chapter 3 table)
C70: ID:
C71: ID:
C72: ID:
C73: ID:
C74: ID:
C75: ID:
C76: ID:
C77: ID:
C78: ID:
C79: ID:
C80: ID:
C81: ID:
C82: ID:
C83: ID:
C84: ID:
C85: ID:
C86: ID:
C87: ID:
C88: ID:
C89: ID:
A92: Refrigerated Spaces, Walk-in & Warehouse
A93: Coolers | D93: Notes | F93: R-Values for Prescriptive Compliance | I93: Prescriptive U-Factor not allowed.
A94: Walls
A95: Ceiling
A96: Doors
A97: Freezers
A98: Walls
A99: Ceiling
A100: Doors
A101: Floor

Sheet ENV-UA
A1: Component Performance Path, pg. 1 | J1: ='TA1'!$C$101 -> Zones 4c/5b | L1: ENV-UA
A2: ='ENV-SUM'!A2 -> 2012 Washington State Energy Code Compliance Forms for Commercial Buildings including R2 & R3 over 3 stories and all R1 | L2: ='ENV-SUM'!G2 -> Revised Oct 2013
A3: ='ENV-SUM'!B3 -> Project Address | F3: =IF('ENV-SUM'!$C$3="1 - This address line will copy onto other forms","1 - Fill this line out on ENV-SUM",'ENV-SUM'!$C$3) -> Baxter Mini-Storage Bldg. | J3: Date | K3: =TEXT('ENV-SUM'!$G$3,"mm/dd/yyyy") -> 09/07/2015
A4: Occupancy Group | J4: For Building Department Use
A5: Change in occupancy or space conditioning
A6: Fenestration Area as % gross above-grade wall area | G6: =IF('ENV-SUM'!G17>0,'ENV-SUM'!G17,0) -> 0 | H6: Max. Target: | I6: ='TA1'!D15 -> 0.3
A7: Skylight Area as % gross roof area | G7: =IF('ENV-SUM'!G19>0,'ENV-SUM'!G19,0) -> 0 | H7: Max. Target: | I7: ='TA1'!D64 -> 0.05
A8: Vertical Fenestration Alternates: | G8: ='TA1'!B95 -> None Selected on ENV-SUM
A10: Building Component | H10: Proposed UA | J10: Target UA
B11: Provide source of U-factor, page/plan # of assembly detail & ID | G11: U-factor | H11: x Area (A) | I11: = UA (U x A) | J11: U-factor | K11: x Area (A) = | L11: UA (U x A)
C12: R= | E12: ID: | I12: =IF(AND(G12=0,H12=0),0,IF(OR(G12=0,H12=0),NA(), H12*G12)) -> 0 | J12: ='TA1'!U92 -> 0.034 | K12: ='TA1'!J81 -> 0 | L12: =IF(TYPE(J12*K12)<>1,0,J12*K12) -> 0
C13: R= | E13: ID: | I13: 0 | J13: Above Deck Insulation | L13: ='TA1'!U122 -> U-0.034
C14: R= | E14: ID: | I14: 0 | M14: 0
C15: R= | E15: ID: | I15: 0 | J15: ='TA1'!U93 -> 0.031 | K15: ='TA1'!J82 -> 0 | L15: =IF(TYPE(J15*K15)<>1,0,J15*K15) -> 0
C16: R= | E16: ID: | I16: 0 | J16: Metal Building | L16: ='TA1'!U123 -> U-0.031
C17: R= | E17: ID: | I17: 0
C18: R= | D18: 38 | E18: ID: | F18: Sheet 4, Cross Sections (Table A102.1) | G18: 0.031 | H18: 3585 | I18: 111.135 | J18: ='TA1'!U94 -> 0.021 | K18: ='TA1'!J83 -> 3585 | L18: =IF(TYPE(J18*K18)<>1,0,J18*K18) -> 75.285
C19: R= | E19: ID: | I19: 0 | J19: Single raft, attic, other | L19: ='TA1'!U124 -> U-0.021
C20: R= | E20: ID: | I20: 0
C21: R= | E21: ID: | I21: =IF(AND(G21=0,H21=0),0,IF(OR(G21=0,H21=0),NA(), H21*G21)) -> 0 | J21: ='TA1'!U98 -> 0.055 | K21: ='TA1'!J35 -> 0 | L21: =IF(TYPE(J21*K21)<>1,0,J21*K21) -> 0
C22: R= | E22: ID: | I22: =IF(AND(G22=0,H22=0),0,IF(OR(G22=0,H22=0),NA(), H22*G22)) -> 0 | J22: Steel/metal frame | L22: ='TA1'!U128 -> U-0.055
C23: R= | E23: ID: | I23: 0
C24: R= | E24: ID: | I24: 0 | J24: ='TA1'!U97 -> 0.052 | K24: ='TA1'!J36 -> 0 | L24: =IF(TYPE(J24*K24)<>1,0,J24*K24) -> 0
C25: R= | E25: ID: | I25: 0 | J25: Metal Building | L25: ='TA1'!U127 -> U-0.052
C26: R= | E26: ID: | I26: 0
C27: R= | D27: 21 | E27: ID: | F27: Sheet 4, Cross Sections (Table A103.3.1(5)) | G27: 0.056 | H27: 957 | I27: 53.592 | J27: ='TA1'!U99 -> 0.054 | K27: ='TA1'!J37 -> 957 | L27: =IF(TYPE(J27*K27)<>1,0,J27*K27) -> 51.678
C28: R= | E28: ID: | I28: 0 | J28: Wood Frame, other | L28: ='TA1'!U129 -> U-0.054
C29: R= | E29: ID: | I29: 0
C30: R= | E30: ID: | I30: 0 | J30: ='TA1'!U96 -> 0.104 | K30: ='TA1'!J38 -> 0 | L30: =IF(TYPE(J30*K30)<>1,0,J30*K30) -> 0
C31: R= | E31: ID: | I31: 0 | J31: Mass Wall | L31: ='TA1'!U126 -> U-0.104
C32: R= | E32: ID: | I32: 0
C33: R= | E33: ID: | I33: 0 | J33: ='TA1'!U105 -> 0.104 | K33: =SUM(H33:H36) -> 0 | L33: =IF(TYPE(J33*K33)<>1,0,J33*K33) -> 0
C34: R= | E34: ID: | I34: 0 | J34: Assumed to be Mass Wall | L34: ='TA1'!U135 -> U-0.104
C35: R= | E35: ID: | I35: 0
C36: R= | E36: ID: | I36: 0
C37: R= | E37: ID: | I37: 0 | J37: ='TA1'!U101 -> 0.031 | K37: =SUM(H37:H39) -> 0 | L37: =IF(TYPE(J37*K37)<>1,0,J37*K37) -> 0
C38: R= | E38: ID: | I38: 0 | J38: Mass Floor | L38: ='TA1'!U131 -> U-0.031
C39: R= | E39: ID: | I39: 0
C40: R= | E40: ID: | I40: 0 | J40: ='TA1'!U102 -> 0.029 | K40: =SUM(H40:H42) -> 0 | L40: =IF(TYPE(J40*K40)<>1,0,J40*K40) -> 0
C41: R= | E41: ID: | I41: 0 | J41: Joist/Framing | L41: ='TA1'!U132 -> U-0.029
C42: R= | E42: ID: | I42: 0
G43: F-factor | H43: x Perimeter | I43: = UA(U x A) | J43: F-factor | K43: x Perimeter = | L43: UA (U x A)
C44: R= | D44: 0 | E44: ID: | F44: Sheet 4, Cross Sections (Table A106.1) | G44: 0.73 | H44: 253 | I44: 184.69 | J44: ='TA1'!U103 -> 0.54 | K44: =SUM(H44:H46) -> 253 | L44: =IF(TYPE(J44*K44)<>1,0,J44*K44) -> 136.62
C45: R= | E45: ID: | I45: 0 | J45: Slab-On-Grade | L45: ='TA1'!U133 -> U-0.54
C46: R= | E46: ID: | I46: 0
C47: R= | E47: ID: | I47: 0 | J47: ='TA1'!U104 -> 0.55 | K47: =SUM(H47:H49) -> 0 | L47: =IF(TYPE(J47*K47)<>1,0,J47*K47) -> 0
C48: R= | E48: ID: | I48: 0 | J48: Heated Slab-On-Grade | L48: ='TA1'!U134 -> U-0.55
C49: R= | E49: ID: | I49: 0
H51: Area | I51: UA | K51: Area | L51: UA
H52: =SUM(H12:H49) -> 4795 | I52: =SUM(I12:I49) -> 349.417 | K52: =K47+K44+K40+K37+K33+K30+K27+K24+K21+K18+K15+K12 -> 4795 | L52: =L47+L44+L40+L37+L33+L30+L27+L24+L21+L18+L15+L12 -> 263.583
A54: Component Performance Compliance (UA) | L54: =L95 -> UA COMPLIES
A55: Component Performance Path, pg. 2 | J55: ='TA1'!$C$101 -> Zones 4c/5b | L55: ENV-UA
A56: =A2 -> 2012 Washington State Energy Code Compliance Forms for Commercial Buildings including R2 & R3 over 3 stories and all R1 | J56: ='ENV-SUM'!E67 -> 0 | L56: =L2 -> Revised Oct 2013
A57: ='ENV-SUM'!B3 -> Project Address | F57: =F3 -> Baxter Mini-Storage Bldg. | J57: Date | K57: =K3 -> 09/07/2015
A58: Fenestration Area as % gross above-grade wall area | G58: =G6 -> 0 | H58: Max. Target: | I58: =I6 -> 0.3 | J58: For Building Department Use
A59: Skylight Area as % gross roof area | G59: =G7 -> 0 | H59: Max. Target: | I59: =I7 -> 0.05
A61: Building Component | H61: Proposed UA | J61: Target UA
B62: Provide source of U-factor, page/plan # of assembly detail & ID | G62: U-factor | H62: x Area (A) | I62: = UA (U x A) | J62: U-factor | K62: x Area (A) = | L62: UA (U x A)
C63: U= | D63: 0.1 | E63: ID: | F63: Sheet 3, Floor Plan - Notes (NFRC) | G63: 0.1 | H63: 80 | I63: =IF(AND(G63=0,H63=0),0,IF(OR(G63=0,H63=0),NA(), H63*G63)) -> 8 | J63: ='TA1'!U90 -> 0.37 | K63: =SUM(H63:H65) -> 80 | L63: =IF(TYPE(J63*K63)<>1,0,J63*K63) -> 29.6
C64: U= | E64: ID: | I64: 0 | J64: Opaque Swing Doors | L64: ='TA1'!U120 -> U-0.37
C65: U= | E65: ID: | I65: 0
C66: U= | D66: 0.091 | E66: ID: | F66: Sheet 3, Floor Plan - Notes (Wayne Dalton) | G66: 0.091 | H66: 1008 | I66: 91.728 | J66: ='TA1'!U91 -> 0.37 | K66: =SUM(H66:H68) -> 1008 | L66: =IF(TYPE(J66*K66)<>1,0,J66*K66) -> 372.96
C67: U= | E67: ID: | I67: 0 | J67: Opaque rollup & sliding | L67: ='TA1'!U121 -> U-0.37
C68: U= | E68: ID: | I68: 0
C69: U= | E69: ID: | I69: 0 | J69: ='TA1'!U85 -> 0.3 | K69: ='TA1'!J30 -> 0 | L69: =IF(TYPE(J69*K69)<>1,0,J69*K69) -> 0
C70: U= | E70: ID: | I70: 0 | J70: Non-Metal Frame | L70: ='TA1'!U115 -> U-0.30
C71: U= | E71: ID: | I71: 0
C72: U= | E72: ID: | I72: 0
C73: U= | E73: ID: | I73: 0 | J73: ='TA1'!U86 -> 0.38 | K73: ='TA1'!J31 -> 0 | L73: =IF(TYPE(J73*K73)<>1,0,J73*K73) -> 0
C74: U= | E74: ID: | I74: 0 | J74: Metal Frame, Fixed | L74: ='TA1'!U116 -> U-0.38
C75: U= | E75: ID: | I75: 0
C76: U= | E76: ID: | I76: 0
C77: U= | E77: ID: | I77: 0 | J77: ='TA1'!U87 -> 0.4 | K77: ='TA1'!J32 -> 0 | L77: =IF(TYPE(J77*K77)<>1,0,J77*K77) -> 0
C78: U= | E78: ID: | I78: 0 | J78: Metal Frame, Operable | L78: ='TA1'!U117 -> U-0.40
C79: U= | E79: ID: | I79: 0
C80: U= | E80: ID: | I80: 0
C81: U= | E81: ID: | I81: 0 | J81: ='TA1'!U88 -> 0.6 | K81: ='TA1'!J33 -> 0 | L81: =IF(TYPE(J81*K81)<>1,0,J81*K81) -> 0
C82: U= | E82: ID: | I82: 0 | J82: Metal Entrance Door | L82: ='TA1'!U118 -> U-0.60
C83: U= | E83: ID: | I83: 0
C84: U= | E84: ID: | I84: 0
C85: U= | E85: ID: | I85: 0 | J85: ='TA1'!U89 -> 0.5 | K85: ='TA1'!J79 -> 0 | L85: =IF(TYPE(J85*K85)<>1,0,J85*K85) -> 0
C86: U= | E86: ID: | I86: 0 | J86: All types | L86: ='TA1'!U119 -> U-0.50
C87: U= | E87: ID: | I87: 0
C88: U= | E88: ID: | I88: 0
H90: Area | I90: UA | K90: Area | L90: UA
G91: Page 2 Subtotal | H91: =SUM(H63:H88) -> 1088 | I91: =SUM(I63:I88) -> 99.728 | K91: =K85+K81+K77+K73+K69+K66+K63 -> 1088 | L91: =L85+L81+L77+L73+L69+L66+L63 -> 402.56
G92: Page 1 Subtotal | H92: =H52 -> 4795 | I92: =I52 -> 349.417 | K92: =K52 -> 4795 | L92: =L52 -> 263.583
G93: Total | H93: =H92+H91 -> 5883 | I93: =I92+I91 -> 449.145 | K93: =K92+K91 -> 5883 | L93: =L92+L91 -> 666.143
A95: Component Performance Compliance (UA) | L95: =IF(OccGroup=3,"Occupancy Group not selected",IF(OR(L93=0,I93=0),"",IF(I93<L93+0.00001,"UA COMPLIES",IF(Alteration110=2,"UA DOES NOT COMPLY",IF(I93>L93*1.10001,"UA DOES NOT COMPLY","UA COMPLIES W/ EXISTING SPACE EXEMPTION"))))) -> UA COMPLIES

Sheet Target Area Adjustments
A1: Vertical Fenestration Target Area Adjustment Calculations
A46: Skylight Target Area Adjustment Calculations

Sheet TA1 (hidden)
B3: Vertical Fenestration Target Area Adjustment Calculations
C7: VF = Vertical fenestration | G7: NW = Net above grade wall (excludes fenestration and doors.)
C8: DR = Opaque doors | G8: Gross Exterior Above-Grade Wall Area= VF + NW + DR
C9: AG = Above-grade
B11: Proposed Areas
D12: Vertical Fenestration -> | E12: VF= | F12: =SUM('ENV-UA'!H69:H84) -> 0
D13: Opaque -> | E13: NW= | F13: =SUM('ENV-UA'!H21:H32) -> 957 | G13: DR= | H13: =SUM('ENV-UA'!H63:H68) -> 1088
B14: Gross Exterior AG Wall Area | D14: Max Vert. Fen. % (C402.3.1) | H14: Maximum Target Vert. Fen. Area
B15: =(SUM(F12:H13)) -> 2045 | C15: x | D15: =U109 -> 0.3 | E15: ¸ | F15: 100 | G15: = | H15: =B15*D15 -> 613.5
B18: Total Vertical Fenestration | F18: Delta Vertical Fenestration | H18: 0 | J18: Excess Vertical Fenestration
B19: =F12 -> 0 | C19: - | D19: =H15 -> 613.5 | E19: = | F19: =B19-D19 -> -613.5 | H19: ô greater | I19: = | J19: =MAX(0,H20) -> 0
H20: =F19 -> -613.5
B22: Total Vertical Fenestration | D22: Excess Vertical Fenestration | F22: Target Vertical Fenestration | H22: Total Vertical Fenestration | J22: Target VF Multiplier | R22: This whole look up is current only used by seattle but the functionality is preserved incase some future code varies the u-value by glass area.
B23: =B19 -> 0 | C23: - | D23: =J19 -> 0 | E23: = | F23: =B23-D23 -> 0 | G23: ¸ | H23: =B23 -> 0 | I23: = | J23: =IF(H23>0,F23/H23,0) -> 0
B25: Net AG Wall Area | D25: Excess Fenestration | F25: Target Net Wall Area | H25: Net Wall | J25: Target Net Wall Mult.
B26: =F13 -> 957 | C26: + | D26: =D23 -> 0 | E26: = | F26: =B26+D26 -> 957 | G26: ¸ | H26: =B26 -> 957 | I26: = | J26: =IF(H26>0,F26/H26,0) -> 1
B28: UA Adjustments | AY28: ERROR MESSAGES
D29: Vertical Fenestration | F29: Proposed Area | H29: Target VF Mult. | J29: Target Area | AY29: page | AZ29: cell | BA29: label | BB29: message
D30: Non-metal frame | F30: =SUM('ENV-UA'!H69:H72) -> 0 | G30: x | H30: =IF(F30>0,$J$23,0) -> 0 | I30: = | J30: =F30*H30 -> 0 | AY30: ENV-SUM | AZ30: D21 | BA30: msgpre31noopts | BB30: Project exceeds maximum vertical fenestration area for Prescriptive compliance. Comply via 50% DLZ Option (C402.3.1.1) or High Performance Window Option (C402.3.1.3) or Component Performance with Target Area Adjustment.
D31: Metal frame, fixed | F31: =SUM('ENV-UA'!H73:H76) -> 0 | G31: x | H31: =IF(F31>0,$J$23,0) -> 0 | I31: = | J31: =F31*H31 -> 0 | AY31: ENV-SUM | AZ31: D21 | BA31: msgpre41opts | BB31: Project exceeds maximum vertical fenestration area for Prescriptive compliance. Comply via Component Performance with Target Area Adjustment.
D32: Metal frame, operable | F32: =SUM('ENV-UA'!H77:H80) -> 0 | G32: x | H32: =IF(F32>0,$J$23,0) -> 0 | I32: = | J32: =F32*H32 -> 0 | AY32: ENV-SUM | AZ32: D21
D33: Metal frame, entrance door | F33: =SUM('ENV-UA'!H81:H84) -> 0 | G33: x | H33: =IF(F33>0,$J$23,0) -> 0 | I33: = | J33: =F33*H33 -> 0 | AY33: ENV-SUM | AZ33: D21
D34: Above-grade Wall | F34: Proposed Area | H34: Target Net Wall Mult. | J34: Target Area | AY34: ENV-SUM | AZ34: D21
D35: Steel Frame | F35: =SUM('ENV-UA'!H21:H23) -> 0 | G35: x | H35: =IF(F35>0,$J$26,0) -> 0 | I35: = | J35: =F35*H35 -> 0 | AY35: ENV-SUM | AZ35: D21
D36: Metal Building | F36: =SUM('ENV-UA'!H24:H26) -> 0 | H36: =IF(F36>0,$J$26,0) -> 0 | I36: = | J36: =F36*H36 -> 0 | AY36: ENV-SUM | AZ36: D21
D37: Wood / Other frame | F37: =SUM('ENV-UA'!H27:H29) -> 957 | G37: x | H37: =IF(F37>0,$J$26,0) -> 1 | I37: = | J37: =F37*H37 -> 957 | R37: This whole look up was set up to look up percent glass. With WSEC 2012 it was co-opted to look up glazing based upon selection of the high performance path glazing. % win could be still be used by assign glazing case differently | AY37: ENV-SUM | AZ37: D21
D38: Mass | F38: =SUM('ENV-UA'!H30:H32) -> 0 | G38: x | H38: =IF(F38>0,$J$26,0) -> 0 | I38: = | J38: =F38*H38 -> 0 | AY38: ENV-SUM | AZ38: D21 | BA38: msgcomply | BB38: COMPLIES
W39: Glazing Case (WSEC 2012 1= HPF Win, 2=base) | AY39: ENV-SUM | AZ39: D21 | BA39: msgua31noopts | BB39: Project exceeds maximum target vertical fenestration area. Target area adjustment applied to UA calculation. May comply via 50% DLZ Option (C402.3.1.1) or High Performance Window Option (C402.3.1.3).
D40: Sum of Proposed | E40: Sum of Proposed | F40: =SUM(F30:F38) -> 957 | H40: Sum of Target | J40: =SUM(J30:J38) -> 957 | W40: =IF(VertFenAlt=2,1,2) -> 2 | AY40: ENV-SUM | AZ40: D21 | BA40: msgua41dlz | BB40: Project exceeds maximum target vertical fenestration area. Target area adjustment applied to UA calculation.
AY41: ENV-SUM | AZ41: D21 | BA41: msgua41hpf | BB41: Project exceeds maximum target vertical fenestration area. Target area adjustment applied to UA calculation.
B42: SHGC x A Adjustments
D43: Non-North Vertical Fenestration | F43: Proposed Area | H43: Target VF Mult. | J43: Target Area
D44: PF < 0.2 | F44: =SUMIFS('ENV-SHGC'!$E$22:$E$31,'ENV-SHGC'!$C$22:$C$31,">=0",'ENV-SHGC'!$C$22:$C$31,"<0.2")+ SUMIFS('ENV-SHGC'!$E$22:$E$31,'ENV-SHGC'!$C$22:$C$31,"",'ENV-SHGC'!$C$22:$C$31,"") -> 0 | G44: x | H44: =IF(F44>0,$J$23,0) -> 0 | I44: = | J44: =F44*H44 -> 0 | U44: BLOCK FOR RAW U-VALUE DATA for Codes that vary values by glazing area. Referenced by lookup functions in U-value By Jurisdiction Table | AK44: BLOCK FOR RAW SHGC DATA for Codes that vary values by glazing area. Referenced by lookup functions in U-value By Jurisdiction Table
D45: 0.2 ≤ PF < 0.5 | F45: =SUMIFS('ENV-SHGC'!$E$22:$E$31,'ENV-SHGC'!$C$22:$C$31,">=0.2",'ENV-SHGC'!$C$22:$C$31,"<0.5") -> 0 | G45: x | H45: =IF(F45>0,$J$23,0) -> 0 | I45: = | J45: =F45*H45 -> 0 | X45: Nres | Y45: Nres | Z45: Nres | AA45: Res | AB45: Res | AC45: Res | AD45: Refg | AE45: Refg | AF45: Refg | AP45: Nres | AS45: Res | AV45: Refg
D46: PF ≥ 0.5 | F46: =SUMIFS('ENV-SHGC'!$E$22:$E$31,'ENV-SHGC'!$C$22:$C$31,">=0.5",'ENV-SHGC'!$C$22:$C$31,"<99") -> 0 | G46: x | H46: =IF(F46>0,$J$23,0) -> 0 | I46: = | J46: =F46*H46 -> 0 | W46: Glazing Case | X46: 1 | Y46: 2 | Z46: Seattle | AA46: 1 | AB46: 2 | AC46: Seattle | AD46: 1 | AE46: 2 | AF46: Seattle | AK46: SHGC | AP46: Seattle | AS46: Seattle | AV46: Seattle
D47: North Vertical Fenestration
D48: PF < 0.2 | F48: =SUMIFS('ENV-SHGC'!$E$38:$E$44,'ENV-SHGC'!$C$38:$C$44,">=0",'ENV-SHGC'!$C$38:$C$44,"<0.2")+ SUMIFS('ENV-SHGC'!$E$38:$E$44,'ENV-SHGC'!$C$38:$C$44,"",'ENV-SHGC'!$C$38:$C$44,"") -> 0 | G48: x | H48: =IF(F48>0,$J$23,0) -> 0 | I48: = | J48: =F48*H48 -> 0
D49: 0.2 ≤ PF < 0.5 | F49: =SUMIFS('ENV-SHGC'!$E$38:$E$44,'ENV-SHGC'!$C$38:$C$44,">=0.2",'ENV-SHGC'!$C$38:$C$44,"<0.5") -> 0 | G49: x | H49: =IF(F49>0,$J$23,0) -> 0 | I49: = | J49: =F49*H49 -> 0
D50: PF ≥ 0.5 | F50: =SUMIFS('ENV-SHGC'!$E$38:$E$44,'ENV-SHGC'!$C$38:$C$44,">=0.5",'ENV-SHGC'!$C$38:$C$44,"<99") -> 0 | G50: x | H50: =IF(F50>0,$J$23,0) -> 0 | I50: = | J50: =F50*H50 -> 0 | U50: Window | V50: non-metal frame | W50: 1 | X50: 0.28 | Y50: 0.28 | Z50: 0.28 | AA50: 0.28 | AB50: 0.28 | AC50: 0.28 | AD50: 0.28 | AE50: 0.28 | AF50: 0.28 | AK50: Window | AM50: 1 | AN50: 0.35 | AO50: 0.35 | AP50: 0.35 | AQ50: 0.35 | AR50: 0.35 | AS50: 0.35 | AT50: 0.35 | AU50: 0.35 | AV50: 0.35
U51: Window | V51: non-metal frame | W51: 2 | X51: 0.3 | Y51: 0.3 | Z51: 0.3 | AA51: 0.3 | AB51: 0.3 | AC51: 0.3 | AD51: 0.3 | AE51: 0.3 | AF51: 0.3 | AK51: Window | AM51: 2 | AN51: 0.4 | AO51: 0.4 | AP51: 0.35 | AQ51: 0.4 | AR51: 0.4 | AS51: 0.35 | AT51: 0.4 | AU51: 0.4 | AV51: 0.35
B52: Skylight Target Area Adjustment Calculations | U52: Window | V52: non-metal frame | W52: 3 | AK52: Window | AM52: 3
U53: Window | V53: Metal Frame, fixed | W53: 1 | X53: 0.34 | Y53: 0.34 | Z53: 0.34 | AA53: 0.34 | AB53: 0.34 | AC53: 0.34 | AD53: 0.34 | AE53: 0.34 | AF53: 0.34 | AK53: Window | AL53: 0.2<=pf<0.5 | AM53: 1 | AN53: =AN50*1.2 -> 0.42 | AO53: =AO50*1.2 -> 0.42 | AP53: =AP50*1.2 -> 0.42 | AQ53: =AQ50*1.2 -> 0.42 | AR53: 0.42 | AS53: 0.42 | AT53: 0.42 | AU53: 0.42 | AV53: 0.42
U54: Window | V54: Metal Frame, fixed | W54: 2 | X54: 0.38 | Y54: 0.38 | Z54: 0.38 | AA54: 0.38 | AB54: 0.38 | AC54: 0.38 | AD54: 0.38 | AE54: 0.38 | AF54: 0.38 | AK54: Window | AL54: 0.2<=pf<0.5 | AM54: 2 | AN54: =AN51*1.2 -> 0.48 | AO54: =AO51*1.2 -> 0.48 | AP54: =AP51*1.2 -> 0.42 | AQ54: 0.48 | AR54: 0.48 | AS54: 0.42 | AT54: 0.48 | AU54: 0.48 | AV54: 0.42
C55: SKY= Skylight | E55: NR - Net roof (excludes skylight) | I55: Gross Exterior Roof Area = SKY + NR | U55: Window | V55: Metal Frame, fixed | W55: 3 | AK55: Window | AL55: 0.2<=pf<0.5 | AM55: 3
U56: Window | V56: Metal Frame, operable | W56: 1 | X56: 0.36 | Y56: 0.36 | Z56: 0.36 | AA56: 0.36 | AB56: 0.36 | AC56: 0.36 | AD56: 0.36 | AE56: 0.36 | AF56: 0.36 | AK56: Window | AL56: pf>=0.5 | AM56: 1 | AN56: =AN50*1.6 -> 0.56 | AO56: =AO50*1.6 -> 0.56 | AP56: =AP50*1.6 -> 0.56 | AQ56: =AQ50*1.6 -> 0.56 | AR56: 0.56 | AS56: 0.56 | AT56: 0.56 | AU56: 0.56 | AV56: 0.56
U57: Window | V57: Metal Frame, operable | W57: 2 | X57: 0.4 | Y57: 0.4 | Z57: 0.4 | AA57: 0.4 | AB57: 0.4 | AC57: 0.4 | AD57: 0.4 | AE57: 0.4 | AF57: 0.4 | AK57: Window | AL57: pf>=0.5 | AM57: 2 | AN57: =AN51*1.6 -> 0.64 | AO57: =AO51*1.6 -> 0.64 | AP57: =AP51*1.6 -> 0.56 | AQ57: 0.64 | AR57: 0.64 | AS57: 0.56 | AT57: 0.64 | AU57: 0.64 | AV57: 0.56
B58: Proposed Areas | U58: Window | V58: Metal Frame, operable | W58: 3 | AK58: Window | AL58: pf>=0.5 | AM58: 3
D59: Skylight (Horizontal Fenestration) -> | E59: SKY= | F59: =SUM('ENV-UA'!H85:H88) -> 0 | U59: Window | V59: metal entrance door | W59: 1 | X59: 0.6 | Y59: 0.6 | Z59: 0.6 | AA59: 0.6 | AB59: 0.6 | AC59: 0.6 | AD59: 0.6 | AE59: 0.6 | AF59: 0.6 | AK59: Skylight | AM59: 1 | AN59: 0.35 | AO59: 0.35 | AP59: 0.35 | AQ59: 0.35 | AR59: 0.35 | AS59: 0.35 | AT59: 0.35 | AU59: 0.35 | AV59: 0.35
D60: Opaque Roof -> | E60: NR= | F60: =SUM('ENV-UA'!H12:H20) -> 3585 | U60: Window | V60: metal entrance door | W60: 2 | X60: 0.6 | Y60: 0.6 | Z60: 0.6 | AA60: 0.6 | AB60: 0.6 | AC60: 0.6 | AD60: 0.6 | AE60: 0.6 | AF60: 0.6 | AK60: Skylight | AM60: 2 | AN60: 0.35 | AO60: 0.35 | AP60: 0.35 | AQ60: 0.35 | AR60: 0.35 | AS60: 0.35 | AT60: 0.35 | AU60: 0.35 | AV60: 0.35
U61: Window | V61: metal entrance door | W61: 3 | AK61: Skylight | AM61: 3
B63: Gross Exterior Roof Area | D63: Max Skylight % (C402.3.1) | H63: Maximum Skylight Fenestration Area | U63: Skylight | V63: all | W63: 1 | X63: 0.5 | Y63: 0.5 | Z63: 0.5 | AA63: 0.5 | AB63: 0.5 | AC63: 0.5 | AD63: 0.5 | AE63: 0.5 | AF63: 0.5 | AK63: N. Window | AM63: 1 | AN63: 0.35 | AO63: 0.35 | AP63: 0.35 | AQ63: 0.35 | AR63: 0.35 | AS63: 0.35 | AT63: 0.35 | AU63: 0.35 | AV63: 0.35
B64: =SUM(F59:F60) -> 3585 | C64: x | D64: =U110 -> 0.05 | E64: ¸ | F64: 100 | G64: = | H64: =B64*D64 -> 179.25 | U64: Skylight | V64: all | W64: 2 | X64: 0.5 | Y64: 0.5 | Z64: 0.5 | AA64: 0.5 | AB64: 0.5 | AC64: 0.5 | AD64: 0.5 | AE64: 0.5 | AF64: 0.5 | AK64: N. Window | AM64: 2 | AN64: 0.4 | AO64: 0.4 | AP64: 0.35 | AQ64: 0.4 | AR64: 0.4 | AS64: 0.35 | AT64: 0.4 | AU64: 0.4 | AV64: 0.35
U65: Skylight | V65: all | W65: 3 | AK65: N. Window | AM65: 3
J66: Excess Skylight | AK66: N. Window | AL66: 0.2<=pf<0.5 | AM66: 1 | AN66: =AN63*1.1 -> 0.385 | AO66: =AO63*1.1 -> 0.385 | AP66: 0.385 | AQ66: 0.385 | AR66: 0.385 | AS66: 0.385 | AT66: 0.385 | AU66: 0.385 | AV66: 0.385
B67: Total Skylight Area | D67: Maximum Target | F67: Delta Skylight Area | H67: 0 | AK67: N. Window | AL67: 0.2<=pf<0.5 | AM67: 2 | AN67: =AN64*1.1 -> 0.44 | AO67: 0.44 | AP67: 0.385 | AQ67: 0.44 | AR67: 0.44 | AS67: 0.385 | AT67: 0.44 | AU67: 0.44 | AV67: 0.385
B68: =F59 -> 0 | C68: - | D68: =H64 -> 179.25 | E68: = | F68: =B68-D68 -> -179.25 | H68: ô greater | I68: = | J68: =MAX(0,H69) -> 0 | AK68: N. Window | AL68: 0.2<=pf<0.5 | AM68: 3
H69: =F68 -> -179.25 | AK69: N. Window | AL69: pf>=0.5 | AM69: 1 | AN69: =AN63*1.2 -> 0.42 | AO69: =AO63*1.2 -> 0.42 | AP69: 0.42 | AQ69: 0.42 | AR69: 0.42 | AS69: 0.42 | AT69: 0.42 | AU69: 0.42 | AV69: 0.42
AK70: N. Window | AL70: pf>=0.5 | AM70: 2 | AN70: =AN64*1.2 -> 0.48 | AO70: 0.48 | AP70: 0.42 | AQ70: 0.48 | AR70: 0.48 | AS70: 0.42 | AT70: 0.48 | AU70: 0.48 | AV70: 0.42
B71: Total Skylight Area | D71: Excess Skylight | F71: Target Skylight Area | H71: Total Skylight Area | J71: Target SL Multiplier | AK71: N. Window | AL71: pf>=0.5 | AM71: 3
B72: =B68 -> 0 | C72: - | D72: =J68 -> 0 | E72: = | F72: =B72-D72 -> 0 | G72: ¸ | H72: =B72 -> 0 | I72: = | J72: =IF(H72>0,F72/H72,0) -> 0
B74: Net Roof Area | D74: Excess Skylight | F74: Target Net Roof Area | H74: Net Roof | J74: Target Net Roof Mult. | T74: Selected Group (1=Nres, 2=Res, 3= Refg WA) ==> | U74: =IF(B91<=2,B91,IF(B91=3,4,3)) -> 1 | Y74: seattle also has swing and non-swing doors | AI74: door type u-values | AJ74: same | AK74: diff -swing / non-swing
B75: =F60 -> 3585 | C75: + | D75: =D72 -> 0 | E75: = | F75: =B75+D75 -> 3585 | G75: ¸ | H75: =B75 -> 3585 | I75: = | J75: =IF(H75>0,F75/H75,0) -> 1 | T75: Selected Zone (1=Zone 4c/5, 2=Zone 6, 3= Seattle) ==> | U75: =IF(B93<=2,B93,IF(B93=3,4,3)) -> 1 | Y75: and two floor u-values (mass/steel joist vs wood/other) | AI75: mtl bld & steel frame wall u-values | AJ75: same | AK75: diff
T76: Data Entered (0=no, 1=yes) ==> | U76: =IF('ENV-UA'!H93=0,0,1) -> 1 | Y76: Glass U & SHGC is by 0-30 and >30 to 40% | AI76: floor over air u-values | AJ76: same | AK76: state + wd frame
B77: UA and SHGC x A Adjustments | T77: Offset ==> | U77: 0
D78: Skylight | F78: Proposed Area | H78: Target SL Mult. | J78: Target Area | T78: Column # (idxU) ==> | U78: =IF(U74=4,10,IF(U75=4,11,U77+(idxGroup-1)*3+idxZone)) -> 1 | V78: should return blank if nothing entered, warning if something entered but no zone/jurisdiction chosen, or the proper value
D79: All | F79: =SUM('ENV-UA'!H85:H88) -> 0 | G79: x | H79: =IF(F79>0,$J$72,0) -> 0 | I79: = | J79: =F79*H79 -> 0
D80: Roof | F80: Proposed Area | H80: Target Net Wall Mult. | J80: Target Area | W80: Master Look Up Table of U-Values | AM80: Master Look Up Table of U-Values
D81: Insulation Above Deck | F81: =SUM('ENV-UA'!H12:H14) -> 0 | G81: x | H81: =IF(F81>0,$J$75,0) -> 0 | I81: = | J81: =F81*H81 -> 0 | W81: Col Num ==> | X81: 1 | Y81: 2 | Z81: 3 | AA81: 4 | AB81: 5 | AC81: 6 | AD81: 7 | AE81: 8 | AF81: 9 | AG81: 10 | AH81: 11 | AM81: Col Num ==> | AN81: 1 | AO81: 2 | AP81: 3 | AQ81: 4 | AR81: 5 | AS81: 6 | AT81: 7 | AU81: 8 | AV81: 9 | AW81: 10 | AX81: 11
D82: Metal Building | F82: =SUM('ENV-UA'!H15:H17) -> 0 | G82: x | H82: =IF(F82>0,$J$75,0) -> 0 | J82: =F82*H82 -> 0 | W82: Group ==> | X82: Nres | Y82: Nres | Z82: Nres | AA82: Res | AB82: Res | AC82: Res | AD82: Refg | AE82: Refg | AF82: Refg | AM82: Group ==> | AN82: Nres | AO82: Nres | AP82: Nres | AQ82: Res | AR82: Res | AS82: Res | AT82: Refg | AU82: Refg | AV82: Refg
D83: Attic / All Others | F83: =SUM('ENV-UA'!H18:H20) -> 3585 | G83: x | H83: =IF(F83>0,$J$75,0) -> 1 | I83: = | J83: =F83*H83 -> 3585 | Q83: Component | R83: Item Name | W83: Zone ==> | X83: 1 | Y83: 2 | Z83: Seattle | AA83: 1 | AB83: 2 | AC83: Seattle | AD83: 1 | AE83: 2 | AF83: Seattle | AM83: Zone ==> | AN83: 1 | AO83: 2 | AP83: Seattle | AQ83: 1 | AR83: 2 | AS83: Seattle | AT83: 1 | AU83: 2 | AV83: Seattle | BA83: SHGC Multipliers
R84: Long | S84: Short | U84: Target U | AL84: Target U | BA84: PF | BB84: non-North | BC84: North
E85: Sum of Proposed | F85: =SUM(F78:F83) -> 3585 | I85: Sum of Target | J85: =SUM(J78:J83) -> 3585 | Q85: Window | R85: non-metal frame | S85: non-metal frm | T85: 1 | U85: =INDEX(TargetUbyJurisdiction,T85,$U$78) -> 0.3 | X85: =INDEX(X$50:X$52,$W$40) -> 0.3 | Y85: =VLOOKUP($W$40,$W$50:$AF$52,3,FALSE) -> 0.3 | Z85: =VLOOKUP($W$40,$W$50:$AF$52,4,FALSE) -> 0.3 | AA85: =VLOOKUP($W$40,$W$50:$AF$52,5,FALSE) -> 0.3 | AB85: =VLOOKUP($W$40,$W$50:$AF$52,6,FALSE) -> 0.3 | AC85: =VLOOKUP($W$40,$W$50:$AF$52,7,FALSE) -> 0.3 | AD85: =VLOOKUP($W$40,$W$50:$AF$52,8,FALSE) -> 0.3 | AE85: =VLOOKUP($W$40,$W$50:$AF$52,9,FALSE) -> 0.3 | AF85: =VLOOKUP($W$40,$W$50:$AF$52,10,FALSE) -> 0.3 | AG85: set occ. | AH85: set zone | AJ85: Window | AK85: 1 | AL85: =INDEX(TargetSHGCbyJurisdiction,AK85,$U$78) -> 0.4 | AN85: =INDEX(AN50:AN52,$W$40) -> 0.4 | AO85: 0.4 | AP85: 0.35 | AQ85: 0.4 | AR85: 0.4 | AS85: 0.35 | AT85: 0.4 | AU85: 0.4 | AV85: 0.35 | AW85: set occ. | AX85: set zone | BA85: 0 | BB85: 1 | BC85: 1
Q86: Window | R86: metal frame, fixed | S86: metal fix | T86: 2 | U86: 0.38 | X86: =INDEX(X$53:X$55,$W$40) -> 0.38 | Y86: =INDEX(Y$53:Y$55,$W$40) -> 0.38 | Z86: 0.38 | AA86: 0.38 | AB86: 0.38 | AC86: 0.38 | AD86: 0.38 | AE86: 0.38 | AF86: 0.38 | AG86: set occ. | AH86: set zone | AJ86: Window 0.2<=pf<0.5 | AK86: 2 | AL86: 0.48 | AN86: =AN85*1.2 -> 0.48 | AO86: =AO85*1.2 -> 0.48 | AP86: =AP85*1.2 -> 0.42 | AQ86: 0.48 | AR86: 0.48 | AS86: 0.42 | AT86: 0.48 | AU86: 0.48 | AV86: 0.42 | AW86: set occ. | AX86: set zone | BA86: 0.100001 | BB86: 0.91 | BC86: 0.95
Q87: Window | R87: metal frame, operable | S87: metal opp | T87: 3 | U87: 0.4 | X87: =INDEX(X$56:X$58,$W$40) -> 0.4 | Y87: =INDEX(Y$56:Y$58,$W$40) -> 0.4 | Z87: 0.4 | AA87: 0.4 | AB87: 0.4 | AC87: 0.4 | AD87: 0.4 | AE87: 0.4 | AF87: 0.4 | AG87: set occ. | AH87: set zone | AJ87: Window pf>0.5 | AK87: 3 | AL87: 0.64 | AN87: =AN85*1.6 -> 0.64 | AO87: =AO85*1.6 -> 0.64 | AP87: =AP85*1.6 -> 0.56 | AQ87: 0.64 | AR87: 0.64 | AS87: 0.56 | AT87: 0.64 | AU87: 0.64 | AV87: 0.56 | AW87: set occ. | AX87: set zone | BA87: 0.200001 | BB87: 0.82 | BC87: 0.91
Q88: Window | R88: metal entrance door | S88: metal frm door | T88: 4 | U88: 0.6 | X88: 0.6 | Y88: 0.6 | Z88: 0.6 | AA88: 0.6 | AB88: 0.6 | AC88: 0.6 | AD88: 0.6 | AE88: 0.6 | AF88: 0.6 | AG88: set occ. | AH88: set zone | AJ88: Skylight | AK88: 4 | AL88: 0.35 | AN88: 0.35 | AO88: 0.35 | AP88: 0.35 | AQ88: 0.35 | AR88: 0.35 | AS88: 0.35 | AT88: 0.35 | AU88: 0.35 | AV88: 0.35 | AW88: set occ. | AX88: set zone | BA88: 0.300001 | BB88: 0.74 | BC88: 0.87
Q89: Skylight | R89: All Types | S89: all types | T89: 5 | U89: 0.5 | X89: 0.5 | Y89: 0.5 | Z89: 0.5 | AA89: 0.5 | AB89: 0.5 | AC89: 0.5 | AD89: 0.5 | AE89: 0.5 | AF89: 0.5 | AG89: set occ. | AH89: set zone | AJ89: N Window | AK89: 5 | AL89: 0.4 | AN89: =INDEX(AN63:AN65,$W$40) -> 0.4 | AO89: =INDEX(AO63:AO65,$W$40) -> 0.4 | AP89: 0.35 | AQ89: 0.4 | AR89: 0.4 | AS89: 0.35 | AT89: 0.4 | AU89: 0.4 | AV89: 0.35 | AW89: set occ. | AX89: set zone | BA89: 0.400001 | BB89: 0.67 | BC89: 0.84
B90: Flags for U-Value Group from building flags on Env-Sum | Q90: Door | R90: Swinging | S90: swing | T90: 6 | U90: =INDEX(TargetUbyJurisdiction,T90,$U$78) -> 0.37 | X90: 0.37 | Y90: 0.37 | Z90: 0.37 | AA90: 0.37 | AB90: 0.37 | AC90: 0.37 | AD90: 0.37 | AE90: 0.37 | AF90: =Z90 -> 0.37 | AG90: set occ. | AH90: set zone | AJ90: N Window 0.2<=pf<0.5 | AK90: 6 | AL90: 0.44 | AN90: =AN89*1.1 -> 0.44 | AO90: =AO89*1.1 -> 0.44 | AP90: =AP89*1.1 -> 0.385 | AQ90: 0.44 | AR90: 0.44 | AS90: 0.385 | AT90: 0.44 | AU90: 0.44 | AV90: 0.385 | AW90: set occ. | AX90: set zone | BA90: 0.500001 | BB90: 0.61 | BC90: 0.81
B91: 1 | C91: Occupancy Group: 1=Non Res, 2= Res, 3=none selected , 4=Refg Warehouse, | Q91: Door | R91: Roll-up or sliding | S91: roll/slide | T91: 7 | U91: 0.37 | X91: 0.37 | Y91: 0.37 | Z91: 0.37 | AA91: 0.37 | AB91: 0.37 | AC91: 0.37 | AD91: 0.37 | AE91: 0.37 | AF91: =Z91 -> 0.37 | AG91: set occ. | AH91: set zone | AJ91: N Window pf>0.5 | AK91: 7 | AL91: 0.48 | AN91: =AN89*1.2 -> 0.48 | AO91: =AO89*1.2 -> 0.48 | AP91: =AP89*1.2 -> 0.42 | AQ91: 0.48 | AR91: 0.48 | AS91: 0.42 | AT91: 0.48 | AU91: 0.48 | AV91: 0.42 | AW91: set occ. | AX91: set zone | BA91: 0.600001 | BB91: 0.56 | BC91: 0.78
B92: 2 | C92: Compliance Path | Q92: Roof | R92: above deck U0.034 - all zones | S92: above deck | T92: 8 | U92: 0.034 | X92: 0.034 | Y92: 0.032 | Z92: 0.026 | AA92: 0.031 | AB92: 0.031 | AC92: 0.031 | AG92: set occ. | AH92: set zone | BA92: 0.700001 | BB92: 0.51 | BC92: 0.76
B93: 1 | C93: Climate Zone: 1= Zone 4c/5, 2=Zone 6, 3=Cleared, 4= Seattle | I93: for seattle need to set this to 4 | Q93: Roof | R93: metal building U0.031 - all zones | S93: metal bldg | T93: 9 | U93: 0.031 | X93: 0.031 | Y93: 0.029 | Z93: 0.027 | AA93: 0.031 | AB93: 0.031 | AC93: 0.031 | AG93: set occ. | AH93: set zone | BA93: 0.800001 | BB93: 0.47 | BC93: 0.75
B94: 3 | C94: Vertical Fenestration Alternates: 1= 50% DLZ, 2= high performance window, 3=none | Q94: Roof | R94: attic/Other U0.027 - all zones | S94: attic/other | T94: 10 | U94: 0.021 | X94: 0.021 | Y94: 0.021 | Z94: 0.021 | AA94: 0.021 | AB94: 0.021 | AC94: 0.021 | AG94: set occ. | AH94: set zone | BA94: 0.90001 | BB94: 0.44 | BC94: 0.73
B95: =IF(VertFenAlt=1,"50% Floor Area in DLZ",IF(VertFenAlt=2,"High Performance Vertical Fenestration","None Selected on ENV-SUM")) -> None Selected on ENV-SUM | C95: Vertical Fenestration Alternates text | Q95: Roof | R95: dummy | S95: dummy | T95: 11 | U95: 0.999 | X95: 0.999 | Y95: 0.999 | Z95: 0.999 | AA95: 0.999 | AB95: 0.999 | AC95: 0.999 | AG95: set occ. | AH95: set zone | AJ95: sea has 0.056 for int ins | BA95: 1
B96: =IF(VertFenAlt=1,1,2) -> 2 | C96: >=50% of floor area in DLZ: 1=yes, 2 no : not used | Q96: AGWall | R96: mass U0.15 z1, U0.123 z2 | S96: mass | T96: 12 | U96: 0.104 | X96: 0.104 | Y96: 0.078 | Z96: 0.057 | AA96: 0.078 | AB96: 0.071 | AC96: 0.09 | AG96: set occ. | AH96: set zone
B97: =IF(VertFenAlt=2,1,2) -> 2 | C97: high performance glazing path (2-no, 1- yes) : not used | Q97: AGWall | R97: metal building U0.064 - all zones | S97: metal bldg | T97: 13 | U97: 0.052 | X97: 0.052 | Y97: 0.052 | Z97: 0.052 | AA97: 0.052 | AB97: 0.044 | AC97: 0.052 | AG97: set occ. | AH97: set zone | AJ97: sea mtl bld and stl are diff
B98: =IF(B96=1,0.4,0.3) -> 0.3 | C98: Maximum prescriptive / comp WWR | Q98: AGWall | R98: steel frame U0.064 - all zones | S98: steel frame | T98: 14 | U98: 0.055 | X98: 0.055 | Y98: 0.049 | Z98: 0.055 | AA98: 0.055 | AB98: 0.044 | AC98: 0.055 | AG98: set occ. | AH98: set zone
B99: HEADER Row | Q99: AGWall | R99: wood frame/other U0.057 zi, U 0.051z2 | S99: wood frame/other | T99: 15 | U99: 0.054 | X99: 0.054 | Y99: 0.051 | Z99: 0.051 | AA99: 0.054 | AB99: 0.044 | AC99: 0.057 | AG99: set occ. | AH99: set zone
B100: Occupancy | C100: =IF(B91=1,"Commercial",IF(B91=2,"Residential",IF(B91=4,"Refrigerated Warehouse",""))) -> Commercial | Q100: AGWall | R100: cmu, same as mass but with corefill then okay in z1 | S100: CMU w/ Ins. Cores | T100: 16 | U100: 0.25 | X100: 0.25 | Y100: 0.123 | Z100: 0.057 | AA100: 0.09 | AB100: 0.08 | AC100: 0.09 | AG100: set occ. | AH100: set zone | AJ100: sea has 0.025 wd frm
B101: Climate zone | C101: =IF(B91=3," ",IF(B93=1,"Zones 4c/5b",IF(B93=2,"Zone 6b",IF(B93=4,"Seattle","")))) -> Zones 4c/5b | Q101: Floor | R101: Mass | S101: mass | T101: 17 | U101: 0.031 | X101: 0.031 | Y101: 0.031 | Z101: 0.031 | AA101: 0.031 | AB101: 0.031 | AC101: 0.031 | AG101: set occ. | AH101: set zone
B102: Header | C102: =IF(AND(C100<>"",C101<>""),CONCATENATE(C101," ",C100),"") -> Zones 4c/5b Commercial | Q102: Floor | R102: Joist/framing | S102: joist/frame | T102: 18 | U102: 0.029 | X102: 0.029 | Y102: 0.029 | Z102: 0.029 | AA102: 0.029 | AB102: 0.029 | AC102: 0.029 | AG102: set occ. | AH102: set zone
B103: Prescriptive PF Factor - not used in 2012 | Q103: Floor | S103: Slab | T103: 19 | U103: 0.54 | W103: All floors U0.029 - all zones | X103: 0.54 | Y103: 0.54 | Z103: 0.52 | AA103: 0.54 | AB103: 0.52 | AC103: 0.52 | AG103: set occ. | AH103: set zone
B104: 3 | Q104: Floor | S104: Heated Slab | T104: 20 | U104: 0.55 | X104: 0.55 | Y104: 0.55 | Z104: 0.55 | AA104: 0.55 | AB104: 0.55 | AC104: 0.55 | AG104: set occ. | AH104: set zone
B105: North Face Credit Flag - not used in 2012 | Q105: BGWall | R105: mass U0.15 z1, U0.123 z2 | S105: mass | T105: 21 | U105: 0.104 | X105: 0.104 | Y105: 0.078 | Z105: 0.057 | AA105: 0.078 | AB105: 0.071 | AC105: 0.09 | AG105: set occ. | AH105: set zone
B106: 3 | Q106: BGWall | R106: metal building U0.064 - all zones | S106: metal bldg | T106: 22 | U106: 0.052 | X106: 0.052 | Y106: 0.052 | Z106: 0.052 | AA106: 0.052 | AB106: 0.044 | AC106: 0.052 | AG106: set occ. | AH106: set zone
Q107: BGWall | R107: steel frame U0.064 - all zones | S107: steel frame | T107: 23 | U107: 0.055 | X107: 0.055 | Y107: 0.049 | Z107: 0.055 | AA107: 0.055 | AB107: 0.044 | AC107: 0.055 | AG107: set occ. | AH107: set zone
Q108: BGWall | R108: wood frame/other U0.057 zi, U 0.051z2 | S108: wood frame/other | T108: 24 | U108: 0.054 | X108: 0.054 | Y108: 0.051 | Z108: 0.051 | AA108: 0.054 | AB108: 0.044 | AC108: 0.057 | AG108: set occ. | AH108: set zone
B109: Alteration / Change of Use | Q109: MAXGlass | R109: MAXGlass | S109: MAXGlass | T109: 25 | U109: 0.3 | X109: =IF(OR(hpfwin=1,dlz50pct=1),0.4,0.3) -> 0.3 | Y109: 0.3 | Z109: 0.3 | AA109: 0.3 | AB109: 0.3 | AC109: 0.3 | AD109: 0.3 | AE109: 0.3 | AF109: 0.3 | AG109: 0 | AH109: 0
B110: 2 | Q110: MAXskylight | R110: MAXskylight | S110: MAXskylight | T110: 26 | U110: =INDEX(TargetUbyJurisdiction,T110,$U$78) -> 0.05 | X110: 0.05 | Y110: 0.05 | Z110: 0.05 | AA110: 0.05 | AB110: 0.05 | AC110: 0.05 | AD110: 0.05 | AE110: 0.05 | AF110: 0.05 | AG110: 0 | AH110: 0 | AM110: LABELS
B111: 0 | AN111: Nres | AO111: Nres | AP111: Nres | AQ111: Res | AR111: Res | AS111: Res | AT111: Refg | AU111: Refg | AV111: Refg
W112: Group ==> | X112: Nres | Y112: Nres | Z112: Nres | AA112: Res | AB112: Res | AC112: Res | AD112: Refg | AE112: Refg | AF112: Refg | AN112: 1 | AO112: 2 | AP112: Seattle | AQ112: 1 | AR112: 2 | AS112: Seattle | AT112: 1 | AU112: 2 | AV112: Seattle
Q113: Component | R113: Item Name | T113: Column # (idxU) ==> | U113: =IF(U74=4,10,IF(U75=4,11,U77+(idxGroup-1)*3+idxZone)) -> 1 | W113: Zone ==> | X113: 1 | Y113: 2 | Z113: Seattle | AA113: 1 | AB113: 2 | AC113: Seattle | AD113: 1 | AE113: 2 | AF113: Seattle | AL113: Target Label
R114: Long | S114: Short | U114: Target Label | W114: Code | AJ114: Window | AK114: 1 | AL114: =INDEX( $AN$114:$AY$120,AK114,$U$113) -> 0.40 | AN114: =TEXT(AN85,"0.00#") -> 0.40 | AO114: 0.40 | AP114: 0.35 | AQ114: 0.40 | AR114: 0.40 | AS114: 0.35 | AT114: 0.40 | AU114: 0.40 | AV114: 0.35 | AW114: set occ. | AX114: set zone
Q115: =Q85 -> Window | R115: non-metal frame | S115: non-metal frm | T115: 1 | U115: =INDEX(TargetLabelByJurisdiction,T115,$U$113) -> U-0.30 | W115: nmfrm | X115: =CONCATENATE("U-",TEXT(X85,"0.00#")) -> U-0.30 | Y115: U-0.30 | Z115: U-0.30 | AA115: U-0.30 | AB115: U-0.30 | AC115: U-0.30 | AD115: U-0.30 | AE115: U-0.30 | AF115: U-0.30 | AG115: set occ. | AH115: set zone | AJ115: Window 0.2<=pf<0.5 | AK115: 2 | AL115: =INDEX( $AN$114:$AY$120,AK115,$U$113) -> 0.48 | AN115: =TEXT(AN86,"0.00#") -> 0.48 | AO115: 0.48 | AP115: 0.42 | AQ115: 0.48 | AR115: 0.48 | AS115: 0.42 | AT115: 0.48 | AU115: 0.48 | AV115: 0.42 | AW115: set occ. | AX115: set zone
Q116: Window | R116: metal frame, fixed | S116: metal fix | T116: 2 | U116: U-0.38 | W116: mfrm | X116: =CONCATENATE("U-",TEXT(X86,"0.00#")) -> U-0.38 | Y116: U-0.38 | Z116: U-0.38 | AA116: U-0.38 | AB116: U-0.38 | AC116: U-0.38 | AD116: U-0.38 | AE116: U-0.38 | AF116: U-0.38 | AG116: set occ. | AH116: set zone | AJ116: Window pf>0.5 | AK116: 3 | AL116: 0.64 | AN116: =TEXT(AN87,"0.00#") -> 0.64 | AO116: 0.64 | AP116: 0.56 | AQ116: 0.64 | AR116: 0.64 | AS116: 0.56 | AT116: 0.64 | AU116: 0.64 | AV116: 0.56 | AW116: set occ. | AX116: set zone
Q117: Window | R117: metal frame, operable | S117: metal opp | T117: 3 | U117: U-0.40 | W117: med | X117: =CONCATENATE("U-",TEXT(X87,"0.00#")) -> U-0.40 | Y117: U-0.40 | Z117: U-0.40 | AA117: U-0.40 | AB117: U-0.40 | AC117: U-0.40 | AD117: U-0.40 | AE117: U-0.40 | AF117: U-0.40 | AG117: set occ. | AH117: set zone | AJ117: Skylight | AK117: 4 | AL117: 0.35 | AN117: =TEXT(AN88,"0.00#") -> 0.35 | AO117: 0.35 | AP117: 0.35 | AQ117: 0.35 | AR117: 0.35 | AS117: 0.35 | AT117: 0.35 | AU117: 0.35 | AV117: 0.35 | AW117: set occ. | AX117: set zone
Q118: Window | R118: metal entrance door | S118: metal frm door | T118: 4 | U118: U-0.60 | W118: nc | X118: =CONCATENATE("U-",TEXT(X88,"0.00#")) -> U-0.60 | Y118: U-0.60 | Z118: U-0.60 | AA118: U-0.60 | AB118: U-0.60 | AC118: U-0.60 | AD118: U-0.60 | AE118: U-0.60 | AF118: U-0.60 | AG118: set occ. | AH118: set zone | AJ118: N Window | AK118: 5 | AL118: 0.40 | AN118: =TEXT(AN89,"0.00#") -> 0.40 | AO118: 0.40 | AP118: 0.35 | AQ118: 0.40 | AR118: 0.40 | AS118: 0.35 | AT118: 0.40 | AU118: 0.40 | AV118: 0.35 | AW118: set occ. | AX118: set zone
Q119: Skylight | R119: All Types | S119: all types | T119: 5 | U119: U-0.50 | W119: wc | X119: =CONCATENATE("U-",TEXT(X89,"0.00#")) -> U-0.50 | Y119: U-0.50 | Z119: U-0.50 | AA119: U-0.50 | AB119: U-0.50 | AC119: U-0.50 | AD119: U-0.50 | AE119: U-0.50 | AF119: U-0.50 | AG119: set occ. | AH119: set zone | AJ119: N Window 0.2<=pf<0.5 | AK119: 6 | AL119: 0.44 | AN119: =TEXT(AN90,"0.00#") -> 0.44 | AO119: 0.44 | AP119: 0.385 | AQ119: 0.44 | AR119: 0.44 | AS119: 0.385 | AT119: 0.44 | AU119: 0.44 | AV119: 0.385 | AW119: set occ. | AX119: set zone
Q120: Door | R120: Swinging | S120: swing | T120: 6 | U120: U-0.37 | W120: dr | X120: =CONCATENATE("U-",TEXT(X90,"0.00#")) -> U-0.37 | Y120: U-0.37 | Z120: U-0.37 | AA120: U-0.37 | AB120: U-0.37 | AC120: U-0.37 | AD120: U-0.37 | AE120: U-0.37 | AF120: U-0.37 | AG120: set occ. | AH120: set zone | AJ120: N Window pf>0.5 | AK120: 7 | AL120: 0.48 | AN120: =TEXT(AN91,"0.00#") -> 0.48 | AO120: 0.48 | AP120: 0.42 | AQ120: 0.48 | AR120: 0.48 | AS120: 0.42 | AT120: 0.48 | AU120: 0.48 | AV120: 0.42 | AW120: set occ. | AX120: set zone
Q121: Door | R121: Roll-up or sliding | S121: roll/slide | T121: 7 | U121: U-0.37 | X121: =CONCATENATE("U-",TEXT(X91,"0.00#")) -> U-0.37 | Y121: U-0.37 | Z121: U-0.37 | AA121: U-0.37 | AB121: U-0.37 | AC121: U-0.37 | AG121: set occ. | AH121: set zone
Q122: Roof | R122: above deck U0.034 - all zones | S122: above deck | T122: 8 | U122: U-0.034 | X122: =CONCATENATE("U-",TEXT(X92,"0.00#")) -> U-0.034 | Y122: U-0.032 | Z122: U-0.026 | AA122: U-0.031 | AB122: U-0.031 | AC122: U-0.031 | AG122: set occ. | AH122: set zone
Q123: Roof | R123: metal building U0.031 - all zones | S123: metal bldg | T123: 9 | U123: U-0.031 | X123: =CONCATENATE("U-",TEXT(X93,"0.00#")) -> U-0.031 | Y123: U-0.029 | Z123: U-0.027 | AA123: U-0.031 | AB123: U-0.031 | AC123: U-0.031 | AG123: set occ. | AH123: set zone
Q124: Roof | R124: attic/Other U0.027 - all zones | S124: attic/other | T124: 10 | U124: U-0.021 | X124: =CONCATENATE("U-",TEXT(X94,"0.00#")) -> U-0.021 | Y124: U-0.021 | Z124: U-0.021 | AA124: U-0.021 | AB124: U-0.021 | AC124: U-0.021 | AG124: set occ. | AH124: set zone
Q125: Roof | R125: dummy | S125: dummy | T125: 11 | U125: U-0.999 | X125: =CONCATENATE("U-",TEXT(X95,"0.00#")) -> U-0.999 | Y125: U-0.999 | Z125: U-0.999 | AA125: U-0.999 | AB125: U-0.999 | AC125: U-0.999 | AG125: set occ. | AH125: set zone
Q126: AGWall | R126: mass U0.15 z1, U0.123 z2 | S126: mass | T126: 12 | U126: U-0.104 | X126: =CONCATENATE("U-",TEXT(X96,"0.00#")) -> U-0.104 | Y126: U-0.078 | Z126: U-0.057 | AA126: U-0.078 | AB126: U-0.071 | AC126: U-0.09 | AG126: set occ. | AH126: set zone
Q127: AGWall | R127: metal building U0.064 - all zones | S127: metal bldg | T127: 13 | U127: U-0.052 | X127: =CONCATENATE("U-",TEXT(X97,"0.00#")) -> U-0.052 | Y127: U-0.052 | Z127: U-0.052 | AA127: U-0.052 | AB127: U-0.044 | AC127: U-0.052 | AG127: set occ. | AH127: set zone
Q128: AGWall | R128: steel frame U0.064 - all zones | S128: steel frame | T128: 14 | U128: U-0.055 | X128: =CONCATENATE("U-",TEXT(X98,"0.00#")) -> U-0.055 | Y128: U-0.049 | Z128: U-0.055 | AA128: U-0.055 | AB128: U-0.044 | AC128: U-0.055 | AG128: set occ. | AH128: set zone
Q129: AGWall | R129: wood frame/other U0.057 zi, U 0.051z2 | S129: wood frame/other | T129: 15 | U129: U-0.054 | X129: =CONCATENATE("U-",TEXT(X99,"0.00#")) -> U-0.054 | Y129: U-0.051 | Z129: U-0.051 | AA129: U-0.054 | AB129: U-0.044 | AC129: U-0.057 | AG129: set occ. | AH129: set zone
Q130: AGWall | R130: cmu, same as mass but with corefill then okay in z1 | S130: CMU w/ Ins. Cores | T130: 16 | U130: U-0.25 | X130: =CONCATENATE("U-",TEXT(X100,"0.00#")) -> U-0.25 | Y130: U-0.123 | Z130: U-0.057 | AA130: U-0.09 | AB130: U-0.08 | AC130: U-0.09 | AG130: set occ. | AH130: set zone
Q131: Floor | R131: Mass | S131: mass | T131: 17 | U131: U-0.031 | X131: =CONCATENATE("U-",TEXT(X101,"0.00#")) -> U-0.031 | Y131: U-0.031 | Z131: U-0.031 | AA131: U-0.031 | AB131: U-0.031 | AC131: U-0.031 | AG131: set occ. | AH131: set zone
Q132: Floor | R132: Joist/framing | S132: joist/frame | T132: 18 | U132: U-0.029 | W132: All floors U0.029 - all zones | X132: =CONCATENATE("U-",TEXT(X102,"0.00#")) -> U-0.029 | Y132: U-0.029 | Z132: U-0.029 | AA132: U-0.029 | AB132: U-0.029 | AC132: U-0.029 | AG132: set occ. | AH132: set zone
Q133: Floor | R133: 0 | S133: Slab | T133: 19 | U133: U-0.54 | X133: =CONCATENATE("U-",TEXT(X103,"0.00#")) -> U-0.54 | Y133: U-0.54 | Z133: U-0.52 | AA133: U-0.54 | AB133: U-0.52 | AC133: U-0.52 | AG133: set occ. | AH133: set zone
Q134: Floor | R134: 0 | S134: Heated Slab | T134: 20 | U134: U-0.55 | X134: =CONCATENATE("U-",TEXT(X104,"0.00#")) -> U-0.55 | Y134: U-0.55 | Z134: U-0.55 | AA134: U-0.55 | AB134: U-0.55 | AC134: U-0.55 | AG134: set occ. | AH134: set zone
Q135: BGWall | R135: mass U0.15 z1, U0.123 z2 | S135: mass | T135: 21 | U135: U-0.104 | X135: =CONCATENATE("U-",TEXT(X105,"0.00#")) -> U-0.104 | Y135: U-0.078 | Z135: U-0.057 | AA135: U-0.078 | AB135: U-0.071 | AC135: U-0.09 | AG135: set occ. | AH135: set zone
Q136: BGWall | R136: metal building U0.064 - all zones | S136: metal bldg | T136: 22 | U136: U-0.052 | X136: =CONCATENATE("U-",TEXT(X106,"0.00#")) -> U-0.052 | Y136: U-0.052 | Z136: U-0.052 | AA136: U-0.052 | AB136: U-0.044 | AC136: U-0.052 | AG136: set occ. | AH136: set zone
Q137: BGWall | R137: steel frame U0.064 - all zones | S137: steel frame | T137: 23 | U137: U-0.055 | X137: =CONCATENATE("U-",TEXT(X107,"0.00#")) -> U-0.055 | Y137: U-0.049 | Z137: U-0.055 | AA137: U-0.055 | AB137: U-0.044 | AC137: U-0.055 | AG137: set occ. | AH137: set zone
Q138: BGWall | R138: wood frame/other U0.057 zi, U 0.051z2 | S138: wood frame/other | T138: 24 | U138: U-0.054 | X138: =CONCATENATE("U-",TEXT(X108,"0.00#")) -> U-0.054 | Y138: U-0.051 | Z138: U-0.051 | AA138: U-0.054 | AB138: U-0.044 | AC138: U-0.057 | AG138: set occ. | AH138: set zone

Sheet ENV-SHGC
A1: SHGC Calculation | G1: ='TA1'!$C$101 -> Zones 4c/5b | J1: ENV-SHGC
A2: ='ENV-SUM'!A2 -> 2012 Washington State Energy Code Compliance Forms for Commercial Buildings including R2 & R3 over 3 stories and all R1 | J2: ='ENV-SUM'!G2 -> Revised Oct 2013
A3: ='ENV-SUM'!B3 -> Project Address | C3: =IF('ENV-SUM'!$C$3="1 - This address line will copy onto other forms","1 - Fill this line out on ENV-SUM",'ENV-SUM'!$C$3) -> Baxter Mini-Storage Bldg. | H3: Date | I3: =TEXT('ENV-SUM'!$G$3,"mm/dd/yyyy") -> 09/07/2015
A4: Fenestration Area as % gross above-grade wall area | E4: =IF('ENV-SUM'!G17>0,'ENV-SUM'!G17,0) -> 0 | G4: ='TA1'!D15 -> 0.3 | H4: For Building Department Use
A5: Skylight Area as % gross roof area | E5: =IF('ENV-SUM'!G19>0,'ENV-SUM'!G19,0) -> 0 | G5: ='TA1'!D64 -> 0.05
A6: Vertical Fenestration Alternates: | C6: ='TA1'!B95 -> None Selected on ENV-SUM
A9: Skylights | F9: Proposed SHGC | H9: Target SHGC
A10: Provide source of SHGC, page/plan # of assembly detail & ID | E10: SHGC | F10: x Area (A) | G10: = SHGC x A | H10: SHGC | I10: x Area (A) = | J10: SHGC x A
A11: ID: | G11: =IF(AND(F11=0,E11=0),0,IF(OR(F11=0,E11=0),NA(),F11*E11)) -> 0 | H11: ='TA1'!AL88 -> 0.35 | I11: ='TA1'!J79 -> 0 | J11: =IF(TYPE(H11*I11)<>1,0,H11*I11) -> 0
A12: ID: | G12: =IF(AND(F12=0,E12=0),0,IF(OR(F12=0,E12=0),NA(),F12*E12)) -> 0 | H12: SHGC | J12: ='TA1'!AL117 -> 0.35
A13: ID: | G13: 0
A14: ID: | G14: =IF(AND(F14=0,E14=0),0,IF(OR(F14=0,E14=0),NA(),F14*E14)) -> 0
A15: ID: | G15: 0
E16: Totals | F16: =SUM(F10:F15) -> 0 | G16: =SUM(G10:G15) -> 0 | H16: Totals | I16: =SUM(I10:I15) -> 0 | J16: =SUM(J10:J15) -> 0
J18: =IF(ABS(F16-'TA1'!F59)>0.1,IF(F16>'TA1'!F59,CONCATENATE("More proposed skylight area here than ENV-UA - Remove ",TEXT('TA1'!F59-F16,"0.0")),CONCATENATE("Less proposed skylight area here than ENV-UA - Add ",TEXT('TA1'!F59-F16,"0.0" )) )," ") -> 
A20: All Non-North Vertical Fenestration+ | E20: Proposed SHGC | G20: PF Category | H20: Target SHGC ++
C21: PF | D21: SHGC* | E21: x Area (A) | F21: = SHGC x A | H21: SHGC | I21: x Area (A) = | J21: SHGC x A
A22: ID: | C22: 0 | F22: =IF(AND(E22=0,D22=0),0,IF(OR(E22=0,D22=0),NA(),E22*D22)) -> 0 | G22: PF < 0.2 | H22: ='TA1'!AL85 -> 0.4 | I22: ='TA1'!J44 -> 0 | J22: =IF(TYPE(H22*I22)<>1,0,H22*I22) -> 0
A23: ID: | C23: 0 | F23: 0 | G23: 0.2≤PF<0.5 | H23: ='TA1'!AL86 -> 0.48 | I23: ='TA1'!J45 -> 0 | J23: =IF(TYPE(H23*I23)<>1,0,H23*I23) -> 0
A24: ID: | C24: 0 | F24: 0 | G24: PF ≥ 0.5 | H24: ='TA1'!AL87 -> 0.64 | I24: ='TA1'!J46 -> 0 | J24: =IF(TYPE(H24*I24)<>1,0,H24*I24) -> 0
A25: ID: | C25: 0 | F25: 0
A26: ID: | C26: 0 | F26: 0
A27: ID: | C27: 0 | F27: 0
A28: ID: | C28: 0 | F28: 0
A29: ID: | C29: 0 | F29: 0
A30: ID: | C30: 0 | F30: 0
A31: ID: | C31: 0 | F31: 0 | M31: 0
D32: Totals | E32: =SUM(E21:E31) -> 0 | F32: =SUM(F21:F31) -> 0 | H32: Totals | I32: =SUM(I21:I31) -> 0 | J32: =SUM(J21:J31) -> 0
A36: North Vertical Fenestration+ | E36: Proposed SHGC | G36: PF Category | H36: Target SHGC++
C37: PF | D37: SHGC* | E37: x Area (A) | F37: = SHGC x A | H37: SHGC | I37: x Area (A) = | J37: SHGC x A
A38: ID: | C38: 0 | F38: =IF(AND(E38=0,D38=0),0,IF(OR(E38=0,D38=0),NA(),E38*D38)) -> 0 | G38: PF < 0.2 | H38: ='TA1'!AL89 -> 0.4 | I38: ='TA1'!J48 -> 0 | J38: =IF(TYPE(H38*I38)<>1,0,H38*I38) -> 0
A39: ID: | C39: 0 | F39: 0 | G39: 0.2≤PF<0.5 | H39: ='TA1'!AL90 -> 0.44 | I39: ='TA1'!J49 -> 0 | J39: =IF(TYPE(H39*I39)<>1,0,H39*I39) -> 0
A40: ID: | C40: 0 | F40: 0 | G40: PF ≥ 0.5 | H40: ='TA1'!AL91 -> 0.48 | I40: ='TA1'!J50 -> 0 | J40: =IF(TYPE(H40*I40)<>1,0,H40*I40) -> 0
A41: ID: | C41: 0 | F41: 0
A42: ID: | C42: 0 | F42: 0
A43: ID: | C43: 0 | F43: =IF(AND(E43=0,D43=0),0,IF(OR(E43=0,D43=0),NA(),E43*D43)) -> 0
A44: ID: | C44: 0 | F44: 0
D45: North Total | E45: =SUM(E37:E44) -> 0 | F45: =SUM(F37:F44) -> 0 | G45: =SUM(G37:G44) -> 0 | I45: =SUM(I37:I44) -> 0 | J45: =SUM(J37:J44) -> 0
F47: Area | G47: SHGC x A | I47: Area | J47: SHGC x A
E48: Grand Total | F48: =F16+E32+E45 -> 0 | G48: =G16+F32+F45 -> 0 | H48: Grand Total | I48: =I16+I32+I45 -> 0 | J48: =J16+J32+J45 -> 0
J50: =IF(ABS((E32+E45)-'TA1'!F12)>0.1,IF((E32+E45)>'TA1'!F12,CONCATENATE("More proposed vertical fenestration here than ENV-UA - Remove ",TEXT('TA1'!F12-(E32+E45),"0.0")),CONCATENATE("Less proposed vertical fenestration here than ENV-UA: Add ",TEXT('TA1'!F12-(E32+E45),"0.0" )) ),"") -> 
A51: Component Performance Compliance (SHGC) | J51: =IF(OccGroup=3,"Occupancy Group not selected",IF(AND(J50="",G48>0,J48>0),IF(G48>J48+0.00001,"SHGC DOES NOT COMPLY","SHGC COMPLIES"),"")) -> 

Sheet ENV-CHK
A1: Building Permit Plans Checklist, pg. 1 | F1: ENV-CHK
A2: =ReadMe!A2 -> 2012 Washington State Energy Code Compliance Forms for Commercial Buildings including R2 & R3 over 3 stories and all R1
A3: Project Address | C3: =IF('ENV-SUM'!$C$3="1 - This address line will copy onto other forms","1 - Fill this line out on ENV-SUM",'ENV-SUM'!$C$3) -> Baxter Mini-Storage Bldg. | E3: Date | F3: ='ENV-SUM'!G3 -> 2015-09-07
A4: The following information is necessary to check a building permit application for compliance with the building envelope requirements in the Washington State Energy Code, Commercial Provisions.
A5: Applicability (yes,no,na) | B5: Code Section | C5: Component | D5: Compliance information required in permit documents | E5: Location in Documents | F5: Building Department Notes
A6: SCOPE
A7: na | B7: C101.5.2 | C7: Low energy spaces | D7: Low energy spaces identified on plans
A8: na | B8: C101.5.2.1 C402.1.4 | C8: Semi-heated spaces | D8: Semi-heated spaces identified on plans
A9: na | B9: C402.5 C402.6 | C9: Cooler and freezer spaces | D9: Walk-in and refrigerated warehouse cooler and freezer spaces identified on plans
A10: na | B10: C101.4.6 | C10: Mixed occupancy | D10: Spaces with different occupancy requirements identified on plans
A11: yes | B11: C101.4.4 C101.4.5 | C11: Change of occupancy/space conditioning | D11: Existing F, S and U-occupancy building spaces undergoing a change of occupancy or space conditioning that require compliance are identified on plans
A12: ENVELOPE PROVISIONS
A13: yes | B13: C303.1 | C13: Insulation identification | D13: Indicate identification mark shall be applied to all insulation materials | E13: Sheet 4
A14: na | B14: C303.1.3 C402.4.3 | C14: Fenestration product rating | D14: Fenestration products shall be labeled with rated U-factor, SHGC, VT, and leakage rating
A15: yes | B15: C303.1.1 C402.2 | C15: General insulation installation | D15: Indicate installation methods, thicknesses, densities and clearances to achieve the intended R-value of all insulation materials; | E15: Sheet 4
D16: Where two or more layers of rigid insulation will be used, indicate that edge joints between layers are staggered
A17: yes | B17: C402.2.1 | C17: Roof assembly insulation | D17: Indicate R-value(s) of cavity/continuous insulation on roof sections; | E17: Sheets 4,5
D18: Indicate framing materials on roof sections;
D19: Indicate method of framing for ceilings below vented attics and vaulted ceilings per A102.2 (std, adv);
D20: Provide area-weighted calculations for sloped insulation installed entirely above deck;
D21: Indicate R-values for thermal spacers and each insulation layer, and liner system (LS) method for metal building roofs
A22: na | B22: C402.2.1 | C22: Skylight curb insulation | D22: Indicate curb insulation R-value on roof section if not included in skylight NFRC rating
A23: yes | B23: C402.2.3 C402.2.4 C303.2.1 | C23: Above/below grade wall insulation | D23: Indicate R-value(s) of cavity/continuous insulation on wall sections; | E23: Sheet 4
D24: Indicate framing materials on wall sections;
D25: Indicate method of framing for wood const per A103.2 (std, int, adv);
D26: Indicate mass of masonry walls;
D27: Indicate loose-fill core insulation material, percentage of cores filled, and frequency of grouted cores and bond beams for masonry walls;
D28: Indicate method of protection of exposed exterior basement/crawlspace wall insulation
A29: na | B29: C402.5 C402.6 | C29: Walk-in/refrigerated warehouse cooler and freezer insulation | D29: Indicate insulation R-values of ceilings, walls, doors, floors on sections;
D30: Indicate method of minimizing door infiltration;
D31: Indicate type(s) of transparent doors and windows
A32: yes | B32: C402.2.7 | C32: Opaque doors | D32: Indicate rated U-factor (swinging) or R-value (roll-up/sliding) on wall sections - applies to doors with less than 50% glazed area | E32: Sheet 3, Notes
A33: na | B33: C402.2.5 | C33: Floor over outdoor or unconditioned space insulation | D33: Indicate R-value(s) of cavity/continuous insulation on floor sections;
D34: Indicate framing material on floor sections;
D35: Indicate mass of masonry floors
A36: yes | B36: C402.2.6 C303.2.1 | C36: Slab-on-grade floor insulation | D36: Indicate R-value of continuous insulation on wall section or foundation detail; | E36: Sheet 4
D37: Indicate insulation extends down vertically and/or horizontally the required distance from top of slab;
D38: Indicate method of protection of exposed exterior slab edge insulation
A39: na | B39: C402.2.6 C303.2.1 | C39: Radiantly heated slab-on-grade floor insulation | D39: Indicate R-value of continuous insulation on wall section or foundation detail;
D40: Indicate insulation extends down vertically from top of slab and then horizontally under the entire slab;
D41: Indicate method of protection of exposed exterior slab edge insulation
A42: na | B42: C402.2.8 | C42: Radiant heating system insulation | D42: Indicate insulation R-value behind radiant panels, U-bend/headers and bottom surface of radiantly heated floors (other than radiantly heated slab-on-grade)
A44: Building Permit Plans Checklist, pg. 2 | F44: ENV-CHK
A45: 2012 Washington State Energy Code Compliance Forms for Commercial Buildings including R2 & R3 over 3 stories and all R1
A46: Project Address | C46: =IF('ENV-SUM'!$C$3="1 - This address line will copy onto other forms","1 - Fill this line out on ENV-SUM",'ENV-SUM'!$C$3) -> Baxter Mini-Storage Bldg. | E46: Date | F46: =F3 -> 2015-09-07
A47: Applicability (yes,no,na) | B47: Code Section | C47: Component | D47: Compliance information required in permit documents | E47: Location in Documents | F47: Building Department Notes
A48: na | B48: C402.3.1 | C48: Vertical fenestration maximum area | D48: Provide calculation for total vertical fenestration area as percentage of gross above grade wall area
A49: na | B49: C402.3.1.2 | C49: Skylight maximum area | D49: Provide calculation for total skylight area as percentage of gross roof area
A50: na | B50: C402.3.3 C402.3.1.3 C303.1.3 | C50: U-factors, SHGC and VT for all fenestration assemblies | D50: Indicate U-factors, SHGC and VT values in fenestration schedules;
D51: An area-weighted U-value may be used for all fenestration elements that qualify within the same fenestration category per Table C402.3;
D52: Indicate if values are NFRC or default. If default then specify frame type, glazing layers, gap width, low-e coatings, gas-fill.
A53: na | B53: C402.3.1.1 Chap. 2 Definition | C53: Increased max. vertical fenestration area with daylighting controls | D53: Provide calculations showing that percentage of overall conditioned floor area in the daylight zone is equal to or greater than 50%;
D54: Indicate method of daylighting control in lighting equipment schedules;
D55: Indicate VT of vertical fenestration is at least 1.1 times the rated SHGC
A56: na | B56: C402.3.1.2 | C56: Increased max. vertical fenestration area with high-performance glazing | D56: Indicate high performance U-factors and SHGC values in fenestration schedules;
D57: An area-weighted U-value may be used for all fenestration elements that qualify within the same fenestration category per this section
A58: na | B58: C402.3.3 C402.3.3.1 | C58: Permanent shading devices | D58: Provide projection factor calculations (Equation C4-2) and associated SHGC multipliers for north and non-north orientations
A59: na | B59: C402.3.2 | C59: Single story spaces requiring skylights | D59: Provide calculations for percentage of conditioned floor area located within a skylight daylight zone;
D60: Provide calculations for percentage of skylight area to daylight zone under skylights, OR;
D61: Provide calculations for percentage of overall skylight effective aperture (Equation C4-1);
D62: Indicate haze factor of skylight glazing material or diffuser
A63: AIR LEAKAGE
A64: na | B64: C402.4.1.1 C402.4.2 | C64: Air barrier construction and sealing | D64: Indicate location of continuous air barrier on plans and sections;
D65: Provide details for all joints, transitions in materials, penetrations in air barrier and note method of sealing (caulked, gasketed, or other approved method)
A66: na | B66: C402.4.5.1 | C66: Stairway and shaft vents | D66: Indicate locations of all stairway and shaft vents;
D67: Provide leakage rating of motorized dampers in mechanical equipment schedules;
D68: Indicate method of emergency operation - activation of fire alarm or interruption of power
A69: yes | B69: C402.4.5.2 | C69: Outdoor air intakes, exhausts and relief openings | D69: Indicate locations of all outside air intakes, exhausts and relief outlets, including those integral to mechanical equipment; | E69: Sheets 1,3,5
D70: Provide in mechanical equipment schedules leakage rating of dampers, identify whether motorized or gravity, and note any exceptions taken
A71: na | B71: C402.4.8 | C71: Recessed lighting in building envelope | D71: Indicate IC rating of fixtures in lighting equipment schedules;
D72: Indicate method of sealing between light fixture housing and wall or ceiling
A73: na | B73: C402.4.6 | C73: Loading dock seals | D73: Indicate weather seal at cargo and loading dock doors
A74: na | B74: C402.4.7 | C74: Vestibules | D74: Indicate locations and dimensions of vestibules;
D75: For unconditioned vestibules, indicate which envelope assembly (interior or exterior) complies with the requirements for a conditioned space
A76: na | B76: C402.4 - .1.2.3 | C76: Air barrier building test | D76: Indicate air barrier test method in accordance with ASTM E779 or approved equivalent;
D77: Include the following requirements in project documents: (1) air barrier test report shall be submitted to jurisdiction once test is completed; (2) if test results exceed 0.4 cfm/ft2 at 0.3 in. wg then visually inspect air barrier and seal noted sources of leakage; (3) submit a follow-up report to jurisdiction noting corrective measures taken
A78: If "no" is selected for any question, provide explanation:
A87: End of Building Permit Plans Checklist
A90: Yes
A91: No
A92: N.A.
A125: na
A126: no
A127: yes

Sheet temp (hidden)
A1: 4
A2: 4
A3: 4
A4: 4
A5: 4
A6: 4
A7: 4
A8: 4
A9: 4
A10: 4
A11: 4
A12: 4
A13: 4
A14: 4
A15: 4
A16: 4
A17: 4
A18: 4
A19: 4
A20: 4
A21: 4
A22: 4
A23: 4
A24: 4
A25: 4
A26: 4
A27: 4
A28: 4
A29: 4
A30: 4
A31: 4
A32: 4
A33: 4
A34: 4
A35: 4
